Cogmind - Beta 16 @@@ ROGUE MODE // 2025.12.14 @ 18:20:11 Player: FrigidRock Result: Heading to fleet! Performance ------------- Evolutions (9) 4500 Regions Visited (33) 6600 Robots Destroyed (445) 2225 Value Destroyed (21258) 21258 Prototype IDs (68) 1360 Alien Tech Used (14) 2800 Bonus (44353) 44353 TOTAL SCORE: 83096 Bonus ------- High Alert Combat Kills 4360 Follower Combat Kills 2623 Destroyed Unchained 1000 Entered Garrisons 400 Entered DSFs 500 Network Hubs Disabled 200 Acquired ECA 300 Met Zhirov 300 Met Warlord at Base 500 MAIN.C Attacked Warlord 500 Warlord Defense Kills 966 Built Enhanced Grunts 300 A7 Reached Mainframe 300 Used Core Reset Matrix 3000 Met Warlord at Research 2000 Invited to Help at Command 2000 Destroyed MAIN.C Guards 500 Met MAIN.C 5000 Destroyed MAIN.C Shell 5000 Destroyed MAIN.C 10000 Met Warlord at Command 2000 Win 3000 Friendly Fire -396 Cogmind --------- Core Integrity 874/1600 Matter 177/300 Energy 350/350 System Corruption 0% +Membrane Temperature Cool (35) Movement Flying (97) Ox1 Location To Fleet Rendezvous Parts ------- > --- POWER (2) -------- Quantum Reactor > --- PROPULSION (8) --- Q-thruster Impulse Thruster Array Improved Q-thruster Cooled Q-thruster > --- UTILITY (12) ----- Advanced Coolant Injector Advanced Coolant Injector Experimental Coolant Injector Large Storage Unit Advanced Targeting Computer Experimental Targeting Computer Advanced Target Analyzer Experimental Core Analyzer Improved Core Shielding Improved Utility Shielding Graphene Brace > --- WEAPON (3) ------- Quantum Rifle Vortex Driver > --- INVENTORY (15) --- Quantum Reactor Zero-point Reactor Advanced Cooling System Experimental Energy Well (600) Experimental Energy Well (600) Experimental Energy Well (600) AEGIS Remote Shield Spacefold Activator Gamma Rifle Ragnarok Missile Launcher Force Lance Peak State ------------ > --- POWER ------------ Quantum Reactor Quantum Reactor > --- PROPULSION ------- Cooled Field Propulsion Drive Q-thruster Impulse Thruster Array Impulse Thruster Array Improved Q-thruster Cooled Q-thruster > --- UTILITY ---------- Advanced Coolant Injector Large Storage Unit Advanced Signal Interpreter Zeronet Interface Experimental Targeting Computer Experimental Core Analyzer Advanced Transmission Jammer Experimental Reaction Control System Experimental Propulsion Shielding Centrium Light Armor Plating Graphene Brace Spacefold Activator > --- WEAPON ----------- Core Cannon Force Lance > --- INVENTORY -------- Experimental Energy Well Advanced Sensor Array Advanced Point Defense System Sigix Sheargun Vortex Driver 6S-H0T's Six Shooter Ragnarok Missile Launcher Advanced Remote Datajack 6S-H0T's SS Cartridge 6S-H0T's SS Cartridge 6S-H0T's SS Cartridge 6S-H0T's SS Cartridge [Rating: 226] Favorites ----------- Power Antimatter Reactor Engine Improved Ion Engine Power Core Neutrino Core Reactor Antimatter Reactor Propulsion Myomer Leg Treads Biometal Heavy Treads Leg Myomer Leg Wheel Compact Wheel Hover Unit Cooled Gravmag System Flight Unit Impulse Thruster Array Utility Advanced Signal Interpreter Device Advanced Sensor Array Storage Medium Storage Unit Processor Advanced Signal Interpreter Hackware Improved System Shield Protection Improved Core Shielding Artifact Spacefold Activator Weapon Autogun Energy Gun Spread Laser Energy Cannon Core Cannon Ballistic Gun Autogun Ballistic Cannon Light Antimatter Cannon Launcher Heavy Rocket Launcher Special Weapon Plasma Cutter Impact Weapon Shock Maul Slashing Weapon Power Sword Piercing Weapon Vortex Lance Special Melee Weapon Improved Datajack Build | -11 -10 -9 -9 -8 -8 -8 -7 -7 -6 -6 -6 -6 -6 -6 -6 -5 -5 -5 -5 -4 -4 -4 -4 -4 -4 -4 -3 -3 -3 -3 -2 -1 -1 ------- Run | Yrd Mat Mat Min Mat Gar Mat Fac DSF Fac Was Fac Ext Cet Arc Hub Fac Upp Upp War Pro Fac Gar Fac Upp Upp Zhi Pro Res Qua Sec Res Acc Com Slots Evolved 18 | . . 2 . 2 . . 2 . 2 . . . . . . 2 . . . . 2 . . . . . . 2 . . 2 2 . Power 1 | . . . . . . . . . . . . . . . . 1 . . . . . . . . . . . . . . . . . Propulsion 6 | . . 1 . 1 . . . . 1 . . . . . . . . . . . 1 . . . . . . 1 . . . 1 . Utility 10 | . . 1 . 1 . . 1 . 1 . . . . . . 1 . . . . 1 . . . . . . 1 . . 2 1 . Weapon 1 | . . . . . . . 1 . . . . . . . . . . . . . . . . . . . . . . . . . . Parts Attached 490 | 8 16 24 1 36 15 12 5 12 4 5 18 9 3 7 3 38 3 1 14 11 20 14 37 2 . 10 2 28 7 9 88 6 22 Power 53 | 2 3 5 . 4 2 . . 2 . 1 . 1 . 1 . 6 . . 1 2 2 1 7 . . 1 . 2 2 1 6 . 1 Engine 18 | 2 3 4 . 1 . . . 2 . . . . . . . 2 . . . . . . 1 . . . . . 1 . 2 . . Core 13 | . . 1 . 3 2 . . . . . . . . . . 1 . . . 1 1 . 3 . . . . . . . 1 . . Reactor 22 | . . . . . . . . . . 1 . 1 . 1 . 3 . . 1 1 1 1 3 . . 1 . 2 1 1 3 . 1 Propulsion 121 | 2 8 5 . 15 3 7 . 4 1 . 8 2 1 1 . 10 . . 6 4 4 2 10 . . 5 1 11 2 . 7 . 2 Treads 4 | . . . . . . . . . . . . . . . . . . . . . 2 2 . . . . . . . . . . . Leg 85 | 2 7 5 . 15 3 7 . 4 1 . 8 2 1 1 . 6 . . 6 4 2 . 10 . . . 1 . . . . . . Wheel 1 | . 1 . . . . . . . . . . . . . . . . . . . . . . . . . . . . . . . . Hover 10 | . . . . . . . . . . . . . . . . . . . . . . . . . . 5 . 4 . . . . 1 Flight 21 | . . . . . . . . . . . . . . . . 4 . . . . . . . . . . . 7 2 . 7 . 1 Utility 218 | 2 1 7 1 9 3 2 3 5 3 2 8 4 1 5 1 16 1 1 3 4 12 6 13 2 . 3 . 10 2 8 65 2 13 Device 113 | 1 1 2 1 3 1 . 2 3 2 1 3 1 . 2 . 13 1 . 1 1 7 3 9 2 . 1 . 5 1 2 35 1 8 Storage 21 | 1 . 1 . 1 1 . . . 1 . 2 . . 1 . . . . 1 1 2 . 1 . . 1 . 1 . 1 5 . . Processor 31 | . . 1 . . . 1 . . . . 1 . . . . 1 . . . 1 1 1 1 . . . . 3 . 4 14 . 2 Hackware 10 | . . . . . . . . . . . . . . 2 1 1 . 1 . . . . . . . . . 1 . . 4 . . Protection 42 | . . 3 . 5 1 1 1 2 . 1 2 3 1 . . 1 . . 1 1 2 2 2 . . 1 . . 1 . 7 1 3 Artifact 1 | . . . . . . . . . . . . . . . . . . . . . . . . . . . . . . 1 . . . Weapon 98 | 2 4 7 . 8 7 3 2 1 . 2 2 2 1 . 2 6 2 . 4 1 2 5 7 . . 1 1 5 1 . 10 4 6 Energy Gun 27 | . 2 6 . 2 2 1 . . . 1 . . . . 1 . . . . 1 1 3 1 . . . . 1 . . 1 1 3 Energy Cannon 11 | . . . . 1 . . . . . . . . . . . 1 . . . . 1 1 1 . . . . 3 1 . 1 1 . Ballistic Gun 22 | 2 2 . . 5 2 . 1 . . . 1 2 1 . . 4 . . . . . . . . . . . . . . 1 1 . Ballistic Cannon 9 | . . . . . . 1 . . . 1 1 . . . 1 . . . . . . . 4 . . . . . . . . . 1 Launcher 7 | . . 1 . . 1 1 . . . . . . . . . . . . . . . . 1 . . . . . . . 1 . 2 Special Weapon 4 | . . . . . 1 . . . . . . . . . . . . . 1 . . . . . . . 1 . . . 1 . . Impact Weapon 1 | . . . . . . . . . . . . . . . . . . . . . . . . . . . . . . . 1 . . Slashing Weapon 7 | . . . . . 1 . 1 1 . . . . . . . 1 . . . . . 1 . . . 1 . . . . 1 . . Piercing Weapon 7 | . . . . . . . . . . . . . . . . . . . 2 . . . . . . . . 1 . . 3 1 . Special Melee Weapon 3 | . . . . . . . . . . . . . . . . . 2 . 1 . . . . . . . . . . . . . . Unidentified Prototypes 54 | . . . . 2 . . . . . . . . 1 2 . 1 . . 3 . 2 . 3 . . 4 1 4 4 4 15 3 5 Corrupted Parts 6 | . . . . 5 . . . . . . . . . . . . . . . . . . 1 . . . . . . . . . . System Corruption 27 | . . . . 26 . . . . . . . . . . . . . . . . . . 1 . . . . . . . . . . Parts Lost 132 | . 9 5 1 20 4 2 . 9 . . 1 3 3 . 3 17 1 . . 8 2 6 9 . . 2 1 4 2 3 . 3 14 Power 18 | . 2 1 . 2 1 . . . . . . 1 . . . 4 . . . . 1 1 2 . . 1 . . 1 . . . 1 Propulsion 32 | . 2 2 . 9 2 1 . 2 . . . . 2 . 1 3 . . . 5 . . . . . . . . . . . . 3 Utility 48 | . 2 2 1 3 1 1 . 4 . . . 1 . . . 6 1 . . 2 . 2 5 . . . 1 3 1 3 . 2 7 Weapon 34 | . 3 . . 6 . . . 3 . . 1 1 1 . 2 4 . . . 1 1 3 2 . . 1 . 1 . . . 1 3 Highest Loss Streak 10 | . 3 1 1 10 2 1 . 7 . . 1 1 3 . 2 6 1 . . 4 1 2 2 . . 1 1 2 2 3 . 2 7 To Critical Strikes 2 | . . . . . . . . . . . . . 1 . . 1 . . . . . . . . . . . . . . . . . Average Backups 13 | 2 7 9 9 10 14 14 12 13 13 13 16 17 19 17 17 13 4 4 6 9 9 9 21 23 24 19 14 9 9 9 13 12 10 Power 1 | 1 . . 1 1 1 1 1 1 1 1 1 1 1 1 2 1 . . . . . . 2 1 1 . 1 . . . . . . Propulsion 1 | . 1 1 . . . . . . 1 1 2 5 5 4 3 1 1 1 . . . . . 2 2 . . 1 1 . . . . Utility 5 | . 2 3 2 3 2 2 2 3 4 4 5 6 6 6 7 6 1 1 2 3 3 5 12 13 14 11 7 3 1 1 5 5 4 Weapon 4 | . 1 2 3 3 9 9 8 6 6 5 5 4 6 4 4 3 . 1 2 4 4 2 5 6 6 5 4 2 3 3 4 4 3 Tool/Special . | . . . . . . . . . . . . . . . . . . . . . . . . . . . . . . . . . . Unused Backups 63 | . 2 5 . 9 1 . . 1 1 4 1 . 1 . . 6 . . 1 . 1 2 9 . . 4 . 2 1 1 5 1 5 Power 6 | . 1 1 . 2 . . . 1 . . . . . . . . . . . . . . . . . . . . . . . . 1 Propulsion 6 | . . . . 1 . . . . . . . . . . . 1 . . 1 . . . . . . . . 1 . 1 . 1 . Utility 26 | . 1 . . 3 . . . . 1 2 1 . 1 . . 2 . . . . 1 2 4 . . 3 . 1 . . . . 4 Weapon 19 | . . 3 . 2 1 . . . . 2 . . . . . 3 . . . . . . 5 . . 1 . . . . 2 . . Tool/Special 6 | . . 1 . 1 . . . . . . . . . . . . . . . . . . . . . . . . 1 . 3 . . Average Slot Usage (%) 91 | . 92 99 98 92 99 97 97 90 96 96 99 95 85 96 99 94 81 94 90 93 93 80 92 99 100 82 84 84 80 78 80 87 84 Engine 1 | . 13 9 . 4 2 . . 4 6 1 . . . . . 1 . . . . . . . . . . . . . . . . . Core 2 | . . 1 11 4 6 9 7 2 . . . . . . . 1 5 5 4 2 5 5 5 . . . . . . . 2 2 . Reactor 4 | . . . . . . . . . . 4 6 6 6 6 6 7 5 5 5 5 4 4 4 9 10 7 5 7 8 9 5 5 8 Treads 1 | . . . . . . . . . . . . . . . . . . . . . 1 14 1 . . . . . . . . . . Leg 22 | . 27 32 33 31 35 34 30 28 33 33 33 33 32 33 32 21 . . 9 28 27 6 28 31 31 14 5 3 . . . . . Flight 4 | . . . . . . . . . . . . . . . . 5 23 23 14 . . . . . . . . 10 18 19 18 24 23 Device 14 | . 9 . 7 6 . . 12 11 23 20 22 12 13 9 11 18 16 15 11 14 22 20 21 30 31 28 24 20 17 13 17 19 20 Storage 6 | . 14 11 11 9 9 9 7 7 6 6 6 6 6 6 6 3 . . 2 5 5 5 5 5 5 5 5 4 4 4 4 4 4 Processor 7 | . . 10 11 9 9 9 1 . . . 4 6 6 6 6 5 11 11 7 5 2 5 6 5 5 5 5 10 14 13 17 19 14 Protection 7 | . . 9 3 9 17 17 15 11 5 9 5 13 13 13 13 4 5 5 5 6 4 4 3 . . 2 5 . 1 3 4 4 6 Energy Gun 4 | . 7 20 22 7 8 8 7 1 . . . . . . . . . . . 2 3 8 3 . . 1 . 1 . . . . 2 Energy Cannon 1 | . . . . . . . . . . . . . . . . . . . . . 2 1 2 . . . . 1 3 4 4 4 2 Ballistic Gun 6 | . 20 1 . 10 8 1 1 6 20 19 19 10 1 19 18 8 . . . . . . . . . . . . . . . . . Ballistic Cannon 1 | . . . . . . 7 1 . . . . 3 1 . 1 1 . . . . . . 2 10 10 . 3 3 . . . . . Piercing Weapon 1 | . . . . . . . . . . . . . . . . . . . 4 11 8 . . . . . . 2 3 4 2 . 1 Peak Build Rating 226 | 9 10 15 15 33 34 35 46 55 54 60 80 86 86 90 88 102 89 89 113 113 144 141 145 137 133 133 120 146 156 163 193 226 226 Average Rating 87 | 6 7 14 14 24 30 33 42 42 51 52 67 80 73 84 86 91 82 88 95 108 130 130 133 132 133 101 115 133 148 150 169 198 201 On Entrance 86 | . 9 7 15 15 33 33 32 46 49 50 56 76 86 71 87 83 83 89 89 113 109 128 124 131 133 133 102 109 145 151 140 184 226 Avg Prop Armor Cover (%) 6 | . . 7 . . 3 . . . . . . . . . . . . . 5 . 6 5 5 . . 6 5 11 . . . . . Naked Turns . | . . . . . . . . . . . . . . . . . . . . . . . . . . . . . . . . . . Heaviest Build 150 | 13 15 30 24 39 42 47 48 48 52 59 94 97 94 81 83 105 39 39 67 67 82 84 150 141 135 135 55 76 56 55 80 89 107 Greatest Support 201 | 20 20 30 30 54 57 60 49 59 69 69 108 108 108 116 116 112 40 40 120 130 150 201 201 155 155 155 51 85 61 75 86 87 89 Greatest Overweight (x) 3 | 2 1 . . 2 . 1 . 1 . . 1 . . . . 1 . . 2 . 1 . 2 . . 2 1 1 . . 1 1 3 Average Overweight (x) . | . . . . . . . . . . . . . . . . . . . . . . . . . . . . . . . . . . Largest Inventory Capacity 25 | 8 8 10 10 15 15 15 15 15 15 15 25 20 20 20 20 20 5 5 10 10 10 10 25 25 25 25 15 15 10 10 15 15 15 Average Capacity 14 | 7 8 9 10 11 15 15 15 15 15 15 18 20 20 20 20 16 5 5 7 10 10 10 22 25 25 20 15 11 10 10 13 15 15 Most Carried 25 | 6 8 10 10 15 15 15 13 15 14 15 20 20 20 20 18 20 5 5 10 10 10 10 25 24 25 25 15 15 10 10 15 15 15 Average Carried 13 | 2 7 9 9 10 14 14 12 13 13 13 17 18 19 17 17 13 4 4 6 9 9 9 21 23 24 19 14 10 9 9 13 13 13 Final Capacity 25 | 8 8 10 10 15 15 15 15 15 15 15 20 20 20 20 20 5 5 5 10 10 10 10 25 25 25 15 15 10 10 10 15 15 15 Final Carried 25 | 6 8 9 9 15 15 13 13 15 13 15 20 20 20 18 17 5 4 5 9 9 10 10 24 24 25 15 15 9 10 10 15 12 11 Class Distribution -------------------- 23% | Mutant 18% | Scavenger-Mutant 11% | Scavenger-Skirmisher 6% | Scavenger-Gunner 5% | Alien-Scout 5% | Commander-Mutant 4% | Scavenger-Tank 4% | Gladiator 3% | Scavenger-Ninja Dominant Class ---------------- Scavenger-Mutant | -10/Materials Mutant | -9/Materials Mutant | -9/Mines Scavenger-Mutant | -8/Materials Mutant | -8/Garrison Mutant | -8/Materials Gladiator | -7/Factory Gladiator | -7/DSF Scavenger-Gunner | -6/Factory Scavenger-Gunner | -6/Waste Scavenger-Skirmisher | -6/Factory Commander-Tank | -6/Extension Mutant | -6/Cetus Scavenger-Tank | -6/Archives Scavenger-Skirmisher | -6/Hub_04(d) Scavenger-Skirmisher | -5/Factory Scout | -5/Upper Caves Sprinter | -5/Upper Caves Hacker-Mutant | -5/Warlord Scavenger-Gladiator | -4/Proximity Caves Mutant | -4/Factory Scavenger-Mutant | -4/Garrison Commander-Mutant | -4/Factory Scavenger-Skirmisher | -4/Upper Caves Scavenger-Skirmisher | -4/Upper Caves Scavenger-Mutant | -4/Zhirov Skirmisher | -3/Proximity Caves Scavenger-Ninja | -3/Research Scavenger-Ninja | -3/Quarantine Alien-Scout | -3/Section 7 Alien-Scout | -2/Research Alien-Ninja | -1/Access Alien-Sprinter | -1/Command Resources | -11 -10 -9 -9 -8 -8 -8 -7 -7 -6 -6 -6 -6 -6 -6 -6 -5 -5 -5 -5 -4 -4 -4 -4 -4 -4 -4 -3 -3 -3 -3 -2 -1 -1 ----------- Run | Yrd Mat Mat Min Mat Gar Mat Fac DSF Fac Was Fac Ext Cet Arc Hub Fac Upp Upp War Pro Fac Gar Fac Upp Upp Zhi Pro Res Qua Sec Res Acc Com Matter Collected 13874 | 241 349 394 19 1189 516 405 . 622 270 484 866 1022 297 652 242 1733 144 46 339 118 262 218 1043 117 24 203 47 627 190 284 556 110 245 Remotely 10 | . . . . . . . . . . . . . . . . 10 . . . . . . . . . . . . . . . . . Salvage Created 19999 | 119 513 712 132 1969 496 654 . 419 70 . 944 946 161 268 208 1931 102 . 243 928 962 1388 2135 . . 389 . 825 354 367 508 579 1677 Parts 865 | 6 32 58 4 97 48 51 . 17 3 . 39 36 6 15 13 93 9 . 12 27 37 43 66 . . 6 . 32 11 11 13 35 45 Haulers Intercepted 9 | . . . . . . 1 . . . . 1 . . . . 1 . . . . . . . . . . . 1 1 . 3 1 . Recyclers Shooed 14 | 1 . . . 1 . . . . . . 4 1 . . . 1 . . . . 1 . 3 . . . . . . 1 . 1 . Parts Field Recycled . | . . . . . . . . . . . . . . . . . . . . . . . . . . . . . . . . . . Retrieved Matter . | . . . . . . . . . . . . . . . . . . . . . . . . . . . . . . . . . . Parts Self-Destructed 48 | . . . . . . . . . . . . . . . . . 11 . . 37 . . . . . . . . . . . . . Prevented 7 | . . . . . . . . . . . . . . . . . 2 . . 2 . . . . . 3 . . . . . . . Parts Restored . | . . . . . . . . . . . . . . . . . . . . . . . . . . . . . . . . . . Kills | -11 -10 -9 -9 -8 -8 -8 -7 -7 -6 -6 -6 -6 -6 -6 -6 -5 -5 -5 -5 -4 -4 -4 -4 -4 -4 -4 -3 -3 -3 -3 -2 -1 -1 ------- Run | Yrd Mat Mat Min Mat Gar Mat Fac DSF Fac Was Fac Ext Cet Arc Hub Fac Upp Upp War Pro Fac Gar Fac Upp Upp Zhi Pro Res Qua Sec Res Acc Com Combat Hostiles Destroyed 345 | . 14 29 2 40 24 21 . 9 1 . 5 16 3 . 4 20 9 . 13 16 16 23 43 . . . . 5 . 2 4 12 14 Melee 32 | . . . . . . . . 7 . . . . . . . . . . . 16 7 . . . . . . . . 2 . . . Guns 154 | . 14 27 2 33 12 6 . 1 1 . 5 10 2 . 2 18 . . . . . 15 3 . . . . . . . . . 3 Cannons 66 | . . . . 1 . 3 . 1 . . . 3 1 . . . . . . . 4 1 25 . . . . 5 . . 4 7 11 AOE 81 | . . 2 . 3 12 12 . . . . . 3 . . 2 2 9 . 13 . . 5 13 . . . . . . . . 5 . Classes Destroyed 23 | 2 2 4 1 3 1 1 . 1 . . 1 1 . 1 . . . . 2 . . . 1 . . . . . . . . . 2 Worker 19 | . . . 1 2 . 4 . . . . 2 . . . . 2 . . . . 1 . 3 . . . . 2 . . . 1 1 Builder 11 | . . 1 . . . 1 . . . . 1 . . . 2 2 . . . . . . 1 . . . . 2 1 . . . . Tunneler 3 | 1 . . . . . 1 . . . . . . . . . . . . . . . . . . . . . . . . . 1 . Hauler 9 | . . . . . . 1 . . . . 1 . . . . 1 . . . . . . . . . . . 1 1 . 3 1 . Recycler 23 | 1 1 1 . 2 . . . . . . 3 1 . . . 5 . . . . . . 1 . . . . 3 1 2 . . 2 Carrier 2 | . . . . . . . . . . . . . . . . . . . . . . . . . . . . . . . . . 2 Mechanic 4 | . . 1 . . . . . . . . 2 . . . . . . . . . . . 1 . . . . . . . . . . Operator 13 | . . . . . . . . . . . . . . 9 . 1 . . . . . . 1 . . . . . . . . 1 1 Watcher 13 | . . 1 . . 1 1 . . . . 1 1 . . . . . . . . 1 . 1 . . . . 2 2 . . 2 . Swarmer 86 | . 5 18 . 6 16 7 . . . . . 1 . . . . 9 . 1 5 4 6 . . . . . 3 . . . 5 . Saboteur 5 | . . . . . . . . . . . . . . . . . . . 5 . . . . . . . . . . . . . . Grunt 125 | . 9 4 2 24 3 9 . 6 . . . 6 . . 3 9 . . 6 4 . 11 22 . . . . 1 . . 4 . 2 Brawler 9 | . . . . 2 1 . . . . . . 1 . . . . . . . 3 . . 2 . . . . . . . . . . Duelist 8 | . . . . . 1 . . . . . . . . . . . . . . 3 . . 3 . . . . . . . . . 1 Protector 3 | . . . . . . . . . . . . . . . . . . . 1 . . . 2 . . . . . . . . . . Sentry 39 | . . 7 . 5 2 5 . . 1 . 1 4 . . 1 3 . . . 1 2 3 2 . . . . 1 . . . . 1 Demolisher 1 | . . . . . . . . . . . . . . . . . . . . . . . 1 . . . . . . . . . . Specialist 5 | . . . . 2 . . . 1 . . . . . . . . . . . . . . 2 . . . . . . . . . . Hunter 25 | . . . . 1 1 . . 1 . . . . . . . 4 . . . . 6 2 6 . . . . . . . . . 4 Programmer 28 | . . . . . . . . . . . 4 1 . . . 4 . . . . 4 . 3 . . . . . . 2 . 6 4 Heavy 1 | . . . . . . . . 1 . . . . . . . . . . . . . . . . . . . . . . . . . Behemoth 3 | . . . . . . . . . . . . 2 . . . . . . . . . 1 . . . . . . . . . . . Cetus Guard 3 | . . . . . . . . . . . . . 3 . . . . . . . . . . . . . . . . . . . . M Guard 1 | . . . . . . . . . . . . . . . . . . . . . . . . . . . . . . . . . 1 Savage 3 | . . . . . . . . . . . . 1 1 1 . . . . . . . . . . . . . . . . . . . Troll 1 | . . . . . . . . . . . . . . . . . . . . . . . . . . . . . . . . . 1 Best Kill Streak 12 | 2 3 4 3 7 8 7 . 3 1 . 3 3 3 3 4 12 5 . 10 11 4 3 11 . . . . 4 1 2 3 7 5 Combat Bots Only 11 | . 3 4 2 6 8 6 . 3 1 . 2 3 3 . 3 9 5 . 10 11 4 3 9 . . . . 3 . 2 3 5 3 Max Kills in Single Turn 5 | 1 1 2 1 3 4 4 . 1 1 . 1 2 2 1 3 2 2 . 3 2 1 2 4 . . . . 2 1 1 2 5 4 Gunslinging 1 | . . 1 . . 1 . . . . . . 1 . . . . . . . . . . . . . . . . . . . . . Exploded 4 | . . 2 . 3 4 3 . . . . . 2 . . 2 1 2 . 3 . . 2 3 . . . . . . . . 4 . Melee 2 | . . . . . . . . 1 . . . . . . . . . . . 2 1 . . . . . . . . 1 . . . Uniques/NPCs Destroyed 2 | . . . . . . . . . . . . . . . . . . . . . . . . . . . . . . . . 1 1 6S-H0T (-1/Access) MAIN.C Shell (-1/Command) Combat | -11 -10 -9 -9 -8 -8 -8 -7 -7 -6 -6 -6 -6 -6 -6 -6 -5 -5 -5 -5 -4 -4 -4 -4 -4 -4 -4 -3 -3 -3 -3 -2 -1 -1 -------- Run | Yrd Mat Mat Min Mat Gar Mat Fac DSF Fac Was Fac Ext Cet Arc Hub Fac Upp Upp War Pro Fac Gar Fac Upp Upp Zhi Pro Res Qua Sec Res Acc Com Hostile Shots Fired 2322 | . 128 110 7 229 91 77 . 73 9 . 57 164 35 . 52 253 52 2 18 119 112 114 343 . . . 17 37 6 50 3 44 120 Missed 809 | . 15 25 . 61 31 24 . 8 1 . 17 64 6 . 17 68 28 2 5 36 43 35 186 . . . 4 19 4 24 3 25 58 Intercepted 7 | . . . . . . . . . . . . . . . . . . . . . . . . . . . . . . . . . 7 Hits 1513 | . 113 85 7 168 60 53 . 65 8 . 40 100 29 . 35 185 24 . 13 83 69 79 157 . . . 13 18 2 26 . 19 62 Melee 12 | . . . . . 1 . . . . . . . . . . . . . . 7 . . 4 . . . . . . . . . . Projectile 1501 | . 113 85 7 168 59 53 . 65 8 . 40 100 29 . 35 185 24 . 13 76 69 79 153 . . . 13 18 2 26 . 19 62 AOE 7 | . . . 1 . . . . . . . . . . . . . . . . . . . 3 . . . . . . . . . 3 Critical Strikes 74 | . 1 5 . 10 1 1 . 5 . . 1 1 6 . 1 8 2 . . 7 3 5 10 . . . . . . 3 . 1 3 Actively Blocked 4 | . . . . . . . . 1 . . . . . . . . . . . . . . . . . . . . . . . . 3 Part Disruptions 8 | . . 1 . . . . . . . . . . . . . . . . . . 1 . 2 . . . . . . . . . 4 Damage Taken 26808 | . 1180 1060 131 2491 753 847 . 1486 62 . 453 1086 767 . 733 3385 426 . 258 1723 902 1750 3130 . . 70 185 415 161 766 . 598 1990 Core 3109 | . 228 118 . 350 77 114 . 253 . . 44 32 17 . 104 288 68 . 26 261 45 116 251 . . 14 . 39 59 327 . 94 184 Absorbed by Shields 550 | . . . . . . . . 24 . . . 179 . . . 347 . . . . . . . . . . . . . . . . . Reduced by Siege Mode 80 | . . . . . . . . . . . . . . . . . . . . . 20 60 . . . . . . . . . . . Redirected to Shielding 485 | . . . . . 14 25 . 15 . . . 12 6 . 37 . . . . . . . . . . . 86 85 29 18 . . 158 Ignored by Resistances 1386 | . . . . . . . . . . . . . . . . 14 . . 36 212 274 150 65 . . . . 16 . 242 . 157 220 Regen/Repaired (Parts) 605 | . . . . 73 . . . . . . 217 . . . . 158 . . 51 . . . . . . . . . . 98 8 . . Core Remaining (%) 55 | 100 8 . 70 . . 1 . 63 . . . . . . 76 . . . . 35 . . . . . . 62 . . 52 93 . 54 Volleys Fired 1114 | 10 71 54 6 112 80 39 . 12 2 . 47 47 16 41 22 98 9 1 11 3 42 131 121 . 3 38 2 25 . . 5 20 46 Largest 3 | 2 2 2 2 2 2 2 . 3 3 . 3 3 3 3 3 3 1 1 1 1 1 2 3 . 2 1 1 2 . . 1 2 3 Hottest 400 | 40 85 130 90 101 91 97 . 87 74 . 79 98 98 86 143 143 39 39 39 88 94 139 216 . 102 60 51 156 . . 300 400 300 Shots Fired 1988 | 20 138 100 12 222 118 62 . 32 6 . 129 106 32 123 62 266 9 1 11 3 42 133 181 . 6 38 2 36 . . 5 21 72 Gun 1459 | 20 138 92 12 206 109 32 . 25 6 . 122 88 19 123 52 216 . . . 1 2 105 22 . . 38 . . . . . 4 27 Cannon 443 | . . . . 16 . 18 . 7 . . 7 16 13 . 10 46 . . . . 40 28 143 . 6 . 1 30 . . 5 13 44 Launcher 77 | . . 8 . . 8 12 . . . . . 2 . . . 4 9 1 11 2 . . 16 . . . . . . . . 4 . Special 9 | . . . . . 1 . . . . . . . . . . . . . . . . . . . . . 1 6 . . . . 1 Kinetic 1150 | 20 114 6 . 127 53 25 . 32 6 . 129 104 32 123 58 236 . . . . . . 46 . 6 . 1 16 . . . . 16 Thermal 313 | . 13 84 . 14 20 . . . . . . . . . 4 4 . . . 1 2 43 80 . . . . 12 . . 5 11 20 Explosive 69 | . . . . . 8 12 . . . . . 2 . . . 4 9 1 11 2 . . 16 . . . . . . . . 4 . Electromagnetic 319 | . 11 10 12 81 37 25 . . . . . . . . . 22 . . . . 40 19 21 . . 38 . 2 . . . 1 . Slashing 19 | . . . . . . . . . . . . . . . . . . . . . . . . . . . . . . . . 4 15 Entropic 110 | . . . . . . . . . . . . . . . . . . . . . . 71 18 . . . . . . . . 1 20 Robot Hit Streak 39 | 6 11 14 21 22 8 8 . 5 6 . 10 7 6 5 7 12 10 . 2 . 4 23 19 . . 23 . 27 . . 8 14 39 Robot Miss Streak 8 | 2 5 6 5 5 8 2 . 4 1 . 3 7 8 7 4 3 . . 2 3 2 4 4 . . 1 . 1 . . 1 . 2 Penetration Max 4 | . . . . . . . . . . . 1 1 1 1 1 2 . . . . . 1 1 . . . . . . . 1 1 4 Secondary Targets 19 | . 2 4 1 2 2 . . . . . 1 3 1 . . 3 . . . . . . . . . . . . . . . . . Max Gunslinging Chain 1 | . 1 1 1 1 1 . . . . . 1 1 1 . . 1 . . . . . . . . . . . . . . . . . Capacitor 235 | . . . . . . . . . . . . . . . . . . . . . 40 127 68 . . . . . . . . . . Shots Hit Robots 1486 | 13 90 72 11 181 53 43 . 43 3 . 87 77 25 76 40 176 2 . 18 28 39 98 126 . . 35 . 24 13 11 12 14 76 Core Hits 987 | 5 31 95 7 96 37 52 . 18 3 . 36 67 32 62 24 76 8 . 29 17 22 47 105 . . 29 . 16 4 5 7 15 42 Critical Kills 30 | . 1 . . . . . . . . . 1 1 . 1 . 2 . . . . . . 2 . . . . 2 . . 4 4 12 Critical Parts Destroyed 30 | . . . . 1 1 . . . . . 2 1 . . . 6 . . . . . 9 . . . . . . . . . 5 5 Critical Strikes 123 | . 2 1 . 2 1 1 . 2 . . 3 2 1 1 . 9 . . . 7 7 13 17 . . . . 3 2 1 6 9 33 Burn 2 | . . 1 . 1 . . . . . . . . . . . . . . . . . . . . . . . . . . . . . Meltdown 4 | . . . . . . . . . . . . . . . . . . . . . . . 2 . . . . 2 . . . . . Destroy 48 | . 1 . . 1 1 . . . . . 3 2 . 1 . 8 . . . . . . . . . . . . . . 5 9 17 Blast 16 | . . . . . . . . . . . . . 1 . . 1 . . . . . . 6 . . . . 1 . . . . 7 Corrupt 5 | . 1 . . . . 1 . . . . . . . . . . . . . . . 1 2 . . . . . . . . . . Sever 3 | . . . . . . . . 2 . . . . . . . . . . . . . 1 . . . . . . . . . . . Impale 9 | . . . . . . . . . . . . . . . . . . . . . . . . . . . . . 2 1 1 . 5 Detonate 9 | . . . . . . . . . . . . . . . . . . . . . . 9 . . . . . . . . . . . Sunder 27 | . . . . . . . . . . . . . . . . . . . . 7 7 2 7 . . . . . . . . . 4 Melee Attacks 279 | . . . . . 1 . . 24 . . . . . . . 10 2 . 15 36 25 20 5 . . 1 . 13 28 45 13 22 19 Thermal 1 | . . . . . . . . . . . . . . . . . . . . . . . . . . 1 . . . . . . . Impact . | . . . . . . . . . . . . . . . . . . . . . . . . . . . . . . . . . . Slashing 82 | . . . . . 1 . . 24 . . . . . . . 10 2 . . . . 20 5 . . . . . . . 1 19 . Piercing 120 | . . . . . . . . . . . . . . . . . . . . . . . . . . . . 13 28 45 12 3 19 Entropic 61 | . . . . . . . . . . . . . . . . . . . . 36 25 . . . . . . . . . . . . Sneak Attacks 30 | . . . . . . . . 1 . . . . . . . 3 . . 15 . . . . . . . . 2 3 2 3 . 1 Combat Hostiles . | . . . . . . . . . . . . . . . . . . . . . . . . . . . . . . . . . . Follow-up Attacks 10 | . . . . . . . . 3 . . . . . . . . . . . 4 3 . . . . . . . . . . . . Damage Inflicted 60272 | 103 871 1138 195 3469 1635 2460 . 1198 47 . 1780 2671 1071 1552 1323 4412 815 . 1366 2432 2289 5071 8426 . . 435 . 1042 695 594 1594 3482 8106 Guns 20694 | 103 871 1041 195 2857 911 539 . 275 47 . 1754 1506 518 1552 707 3458 . . . . 29 2682 388 . . 219 . . . . . 91 951 Cannons 18909 | . . . . 332 . 231 . 134 . . . 864 553 . 181 466 . . . . 866 784 4642 . . . . 695 . . 1000 2396 5765 Explosions 11250 | . . 97 . 272 724 1690 . . . . . 299 . . 435 232 815 . 1366 24 166 842 3222 . . 216 . . . . . 850 . Melee 9195 | . . . . . . . . 777 . . . . . . . 256 . . . 2408 1226 763 . . . . . 347 695 594 594 145 1390 Ramming 224 | . . . . 8 . . . 12 . . 26 2 . . . . . . . . 2 . 174 . . . . . . . . . . Kinetic 17272 | 103 600 16 . 1766 551 286 . 409 47 . 1754 2370 1071 1552 832 3663 . . . . . . 1003 . . . . 298 . . . . 951 Thermal 14424 | . 132 1025 . 492 100 80 . . . . . . . . 56 129 . . . . 29 1792 2844 . . 216 . 397 . . 1000 2350 3782 Explosive 8435 | . . . . . 724 1610 . . . . . 299 . . . 159 815 . 1366 24 . . 2588 . . . . . . . . 850 . Electromagnetic 5109 | . 139 97 195 1203 260 484 . . . . . . . . 435 205 . . . . 1032 406 388 . . 219 . . . . . 46 . Impact . | . . . . . . . . . . . . . . . . . . . . . . . . . . . . . . . . . . Slashing 2464 | . . . . . . . . 777 . . . . . . . 256 . . . . . 763 . . . . . . . . . 236 432 Piercing 3620 | . . . . . . . . . . . . . . . . . . . . . . . . . . . . 347 695 594 594 . 1390 Entropic 8724 | . . . . . . . . . . . . . . . . . . . . 2408 1226 2110 1429 . . . . . . . . . 1551 Highest Corruption 26 | . . . . 26 26 26 . . . . 5 6 6 6 . 4 . . . 2 3 3 4 4 4 4 . . . . . . . Average Corruption 9 | . . . . 20 26 26 . . . . 3 5 6 5 . 1 . . . 2 2 3 2 4 4 3 . . . . . . . Corruption Purged 17 | . . . . . . . . . . . . . . 6 . 4 . . . . . . 3 . . 4 . . . . . . . Corruption Blocked . | . . . . . . . . . . . . . . . . . . . . . . . . . . . . . . . . . . Effects 341 | . . . . 59 73 61 . . . . 16 30 9 6 . 9 . . . 2 12 24 19 6 8 7 . . . . . . . Message Errors 79 | . . . . 16 19 15 . . . . 3 3 1 . . 3 . . . . 3 6 3 3 2 2 . . . . . . . Matter Fused 75 | . . . . 10 12 16 . . . . 4 10 2 2 . 3 . . . . 3 4 5 1 2 1 . . . . . . . Heat Flow Errors 30 | . . . . 3 8 5 . . . . 1 3 . . . . . . . . 2 3 3 1 1 . . . . . . . . Energy Discharges 35 | . . . . 7 10 6 . . . . 1 3 1 1 . 1 . . . 1 1 2 1 . . . . . . . . . . Parts Rejected 4 | . . . . . . 1 . . . . 1 2 . . . . . . . . . . . . . . . . . . . . . Parts Fused 7 | . . . . 1 1 2 . . . . . 1 . . . . . . . . . 1 1 . . . . . . . . . . Data Loss (minor) 55 | . . . . 11 9 7 . . . . 3 4 1 3 . 2 . . . 1 2 5 3 1 1 2 . . . . . . . Data Loss (major) 13 | . . . . 1 2 2 . . . . . 1 2 . . . . . . . 1 2 . . 1 1 . . . . . . . Misfires 11 | . . . . 2 1 1 . . . . 2 . 2 . . . . . . . . 1 1 . 1 . . . . . . . . Alerts 8 | . . . . 1 2 1 . . . . 1 1 . . . . . . . . . . 1 . . 1 . . . . . . . Misdirections 7 | . . . . 4 3 . . . . . . . . . . . . . . . . . . . . . . . . . . . . Weapon Failures 17 | . . . . 3 6 5 . . . . . 2 . . . . . . . . . . 1 . . . . . . . . . . Overload Shots . | . . . . . . . . . . . . . . . . . . . . . . . . . . . . . . . . . . Overflow Damage 3652 | . . . . 44 4 126 . 58 . . . 112 34 . 28 94 113 . 19 273 164 47 362 . . 38 . 7 177 64 35 984 869 Projectiles 1946 | . . . . . . . . . . . . 96 34 . . 2 . . . . . . 191 . . . . 7 . . . 921 695 Explosions 640 | . . . . 44 4 126 . . . . . 16 . . 28 . 113 . 19 7 . 47 135 . . 38 . . . . . 63 . Melee 1066 | . . . . . . . . 58 . . . . . . . 92 . . . 266 164 . 36 . . . . . 177 64 35 . 174 Knockbacks 36 | . . . . . . 9 . 2 . . . . . . . 6 . . . . . . 11 . . . . 5 . . . . 3 Impact . | . . . . . . . . . . . . . . . . . . . . . . . . . . . . . . . . . . Kinetic 31 | . . . . . . 8 . 2 . . . . . . . 5 . . . . . . 10 . . . . 3 . . . . 3 Secondary 5 | . . . . . . 1 . . . . . . . . . 1 . . . . . . 1 . . . . 2 . . . . . Self-Inflicted Damage 1084 | . . 75 . 49 24 124 . . . . . . . . 99 81 32 . 51 91 39 245 118 . . 56 . . . . . . . Shots 28 | . . 5 . 1 2 3 . . . . . . . . 1 1 2 . 1 2 2 5 2 . . 1 . . . . . . . Rammed . | . . . . . . . . . . . . . . . . . . . . . . . . . . . . . . . . . . Targets Rammed 17 | . . . . 2 . . . 2 . . 3 1 . . . . . . . . 1 . 8 . . . . . . . . . . Kicked 17 | . . . . 2 . . . 2 . . 3 1 . . . . . . . . 1 . 8 . . . . . . . . . . Crushed . | . . . . . . . . . . . . . . . . . . . . . . . . . . . . . . . . . . Highest Temperature 416 | . 404 321 189 239 412 238 . 246 12 . 315 248 36 84 252 371 335 . 33 30 280 291 416 . . . . 36 . . 190 186 199 Average Temperature 89 | . 113 110 87 71 85 80 . 159 9 . 57 60 7 32 65 101 146 . 11 16 87 101 126 . . . . 16 . . 108 94 95 Received Heat Transfer 5742 | . 429 264 45 1242 111 306 . 468 18 . 36 280 45 . 189 607 342 . 66 286 36 316 470 . . . 9 45 9 . . 39 84 Effects 28 | . 7 2 . . 9 . . . . . 3 . . . 1 4 . . . . . . 2 . . . . . . . . . . Shutdowns 3 | . 1 . . . 1 . . . . . . . . . . . . . . . . . 1 . . . . . . . . . . Energy Bleed 3 | . . . . . 1 . . . . . . . . . . 1 . . . . . . 1 . . . . . . . . . . Interference 16 | . 3 2 . . 6 . . . . . 3 . . . 1 1 . . . . . . . . . . . . . . . . . Matter Decay 2 | . 1 . . . . . . . . . . . . . . 1 . . . . . . . . . . . . . . . . . Short Circuit 3 | . 1 . . . 1 . . . . . . . . . . 1 . . . . . . . . . . . . . . . . . Damage (minor) 1 | . 1 . . . . . . . . . . . . . . . . . . . . . . . . . . . . . . . . Siege Activations 9 | . . . . . . . . . . . . . . . . . . . . . 1 8 . . . . . . . . . . . Total Turns 62 | . . . . . . . . . . . . . . . . . . . . . 10 52 . . . . . . . . . . . Longest Duration 15 | . . . . . . . . . . . . . . . . . . . . . 10 15 . . . . . . . . . . . Martial Activations . | . . . . . . . . . . . . . . . . . . . . . . . . . . . . . . . . . . Shielding Activations . | . . . . . . . . . . . . . . . . . . . . . . . . . . . . . . . . . . Robots Disrupted 2 | . . . . . . . . . . . . . . . . . . . . . 2 . . . . . . . . . . . . Combat Hostiles 2 | . . . . . . . . . . . . . . . . . . . . . 2 . . . . . . . . . . . . Robots Corrupted 11 | . . . . 3 . . . . . . . . . . . . . . . . 5 2 . . . 1 . . . . . . . Combat Hostiles 11 | . . . . 3 . . . . . . . . . . . . . . . . 5 2 . . . 1 . . . . . . . Parts Fried 27 | . 2 1 2 2 . . . . . . . 3 1 . 2 . . . . . 10 4 . . . . . . . . . . . Impact Corruptions 1 | . . . . . . . . . . . . . . . . . . . . . . . 1 . . . . . . . . . . Robots Melted 4 | . . . . . . . . . . . . . . . . . . . . . . . 2 . . . . 2 . . . . . Combat Hostiles 2 | . . . . . . . . . . . . . . . . . . . . . . . 2 . . . . . . . . . . Parts Melted 15 | . . 1 . . . . . . . . . . . . . . . . . 2 . 4 5 . . . . 3 . . . . . Heat Transferred 8307 | . 296 1541 . 731 185 50 . . . . . . . . 111 161 . . . . 37 2110 2583 . . 50 . 407 . . . . 45 Parts Sabotaged 3 | . . . . . . . . . . . . . . . . . . . . . . . 3 . . . . . . . . . . Parts Stolen . | . . . . . . . . . . . . . . . . . . . . . . . . . . . . . . . . . . Parts Stripped . | . . . . . . . . . . . . . . . . . . . . . . . . . . . . . . . . . . Power Chain Reactions 7 | . . 1 . 4 . 1 . . . . . . . . . . . . . . . . . . . 1 . . . . . . . Alert | -11 -10 -9 -9 -8 -8 -8 -7 -7 -6 -6 -6 -6 -6 -6 -6 -5 -5 -5 -5 -4 -4 -4 -4 -4 -4 -4 -3 -3 -3 -3 -2 -1 -1 ------- Run | Yrd Mat Mat Min Mat Gar Mat Fac DSF Fac Was Fac Ext Cet Arc Hub Fac Upp Upp War Pro Fac Gar Fac Upp Upp Zhi Pro Res Qua Sec Res Acc Com Maximum Alert Level 5 | . . . . 2 4 3 2 1 1 . 1 3 1 . 3 4 . . . . 1 5 5 . . . . 1 . . 1 3 3 Low Security (%) 49 | 100 100 100 100 29 . . . . 65 100 97 27 93 100 69 . . . . . 77 4 . . . . . 94 100 100 98 3 . Level 1 10 | . . . . 21 8 . 68 100 34 . 2 26 6 . 11 . . . . . 22 18 . . . . . 5 . . 1 70 . Level 2 19 | . . . . 49 6 62 31 . . . . 44 . . 18 35 . . . . . 25 38 . . . . . . . . 24 37 Level 3 14 | . . . . . 49 37 . . . . . 1 . . . 57 . . . . . 27 30 . . . . . . . . 1 62 Level 4 5 | . . . . . 35 . . . . . . . . . . 6 . . . . . 13 24 . . . . . . . . . . Level 5 1 | . . . . . . . . . . . . . . . . . . . . . . 10 6 . . . . . . . . . . High Security . | . . . . . . . . . . . . . . . . . . . . . . . . . . . . . . . . . . Max Security . | . . . . . . . . . . . . . . . . . . . . . . . . . . . . . . . . . . Sterilizations 1 | . . . . . . . . 1 . . . . . . . . . . . . . . . . . . . . . . . . . Peak Influence 1945 | 10 112 184 101 481 1362 971 427 389 214 53 220 701 201 188 890 1169 . . . . 245 1641 1945 . . . . 215 177 109 200 735 857 Initial 861 | . . . 66 33 280 663 427 239 203 53 . 35 200 18 32 436 . . . . 96 154 861 . . . . . 120 3 27 67 464 Average 376 | . 48 50 81 300 944 652 383 301 187 5 47 356 118 138 194 802 . . . . 87 829 915 . . . . 52 93 65 65 354 729 Influence Increases 18816 | 10 451 808 70 1146 1242 894 5 240 31 . 509 1490 156 310 1146 1421 245 45 537 515 503 1627 2247 . . 15 . 572 250 313 375 952 691 Destroy 0b10 Robot/C 8220 | . 280 580 40 800 680 420 . 180 20 . 100 620 80 80 260 400 180 . 420 420 320 580 1000 . . . . 100 . 40 80 220 320 Destroy 0b10 Robot/NC 570 | 10 5 20 5 20 5 40 . . . . 50 25 5 45 20 50 . . 5 5 10 15 65 . . 15 . 50 25 10 15 30 25 Destroy Leader 1374 | . 50 122 10 190 20 114 . 30 10 . 54 74 . . 50 102 20 . . 30 82 40 192 . . . . 26 6 10 16 56 70 Allied During Kill 1475 | . . . . . 78 . . . . . . 592 50 125 182 . . . 112 45 . 108 183 . . . . . . . . . . Successful Hack 665 | . 26 25 . 25 14 13 5 . . . 68 34 . . . 59 . . . . 14 14 56 . . . . 75 95 72 4 24 42 Select Force Hacks 120 | . 30 . . 60 . . . . . . 30 . . . . . . . . . . . . . . . . . . . . . . Disable Machine 1440 | . . 45 . 15 15 60 . . . . . 90 15 60 285 120 . . . . 30 75 285 . . . . 45 75 120 . 75 30 Anti-Garrison Action 1800 | . . . . . 250 . . . . . 200 . . . 200 200 . . . . . 350 . . . . . 200 . . 200 200 . Destroy Structure 1682 | . . 1 . 21 75 127 . . 1 . 7 25 6 . 149 130 . . . . 2 265 406 . . . . 16 4 16 15 287 129 Partial Spotted 210 | . . . . . 15 . . . . . . . . . . 45 . . . . 15 . 15 . . . . 15 . 15 15 60 15 Lose Combat Pursuer 1260 | . 60 15 15 15 90 120 . 30 . . . 30 . . . 315 45 45 . 15 30 180 45 . . . . 45 45 30 30 . 60 Influence Decreases 18095 | 10 451 636 156 801 311 1315 604 193 266 154 435 1205 469 262 350 1146 552 204 798 799 436 207 1965 812 332 794 . 357 459 271 311 337 697 Entered New Map 7423 | . . . 106 53 151 699 514 103 186 101 . 39 159 28 62 454 432 164 699 438 58 67 780 712 212 779 . . 95 3 21 45 263 Time Decay 7116 | 10 361 405 40 538 . 446 90 . 80 53 368 446 160 214 198 502 110 40 59 236 358 . 565 100 120 10 . 319 214 238 280 262 294 Lost Part 1283 | . 90 40 10 200 40 20 . 90 . . 10 30 30 . 30 170 10 . . 80 20 60 90 . . 5 . 38 20 30 . 30 140 Lost Ally 865 | . . . . 10 120 . . . . . . 240 120 20 60 20 . . 40 45 . 80 80 . . . . . 20 . 10 . . Purge Threat 1408 | . . 191 . . . 150 . . . . 57 450 . . . . . . . . . . 450 . . . . . 110 . . . . Squads Dispatched 79 | . 2 1 . 9 . 5 . 1 . . 7 2 . . 2 7 . . . 1 3 . 16 . . . . 4 2 2 3 7 5 Investigation 15 | . 2 1 . 2 . . . . . . 3 1 . . 1 1 . . . . 1 . . . . . . 1 . . 1 1 . Extermination 21 | . . . . . . . . . . . 3 . . . . 2 . . . . 2 . 4 . . . . 2 2 2 . 2 2 Reinforcement 23 | . . . . 4 . 1 . 1 . . 1 1 . . 1 2 . . . . . . 7 . . . . 1 . . 2 2 . Assault 11 | . . . . . . . . . . . . . . . . 1 . . . 1 . . 5 . . . . . . . . 1 3 Garrison 9 | . . . . 3 . 4 . . . . . . . . . 1 . . . . . . . . . . . . . . . 1 . Intercept . | . . . . . . . . . . . . . . . . . . . . . . . . . . . . . . . . . . Searches Triggered . | . . . . . . . . . . . . . . . . . . . . . . . . . . . . . . . . . . Unchained Authorized 1 | . . . . . . . . . . . . . . . . . . . . . . . . . . . . . . . . 1 . Construction Impeded 5 | . . . . . . 1 . . . . . . . . . 1 . . . . . . 2 . . . . 1 . . . . . Haulers Reinforced 1 | . . . . . . . . . . . . . . . . . . . . . . . 1 . . . . . . . . . . Active Scanning Responses . | . . . . . . . . . . . . . . . . . . . . . . . . . . . . . . . . . . Cargo Convoy Interrupts 1 | . . . . . . . . . . . . . . . . . . . . . . . 1 . . . . . . . . . . Stealth | -11 -10 -9 -9 -8 -8 -8 -7 -7 -6 -6 -6 -6 -6 -6 -6 -5 -5 -5 -5 -4 -4 -4 -4 -4 -4 -4 -3 -3 -3 -3 -2 -1 -1 --------- Run | Yrd Mat Mat Min Mat Gar Mat Fac DSF Fac Was Fac Ext Cet Arc Hub Fac Upp Upp War Pro Fac Gar Fac Upp Upp Zhi Pro Res Qua Sec Res Acc Com Distress Signals 31 | . 2 2 . 5 3 4 . . . . . 1 1 . . 2 . . . . . . 2 . . . . . . 3 3 . 3 Communications Jammed 79 | . . . . . . . . . . . . . . . 4 43 . . . . 8 . . . . . . 20 . . . 4 . Distress Signals 73 | . . . . . . . . . . . . . . . . 42 . . . . 7 . . . . . . 20 . . . 4 . Times Spotted 667 | . 23 42 3 60 37 37 . 11 1 . 16 31 5 31 14 60 14 8 24 25 20 29 70 . . . 1 15 9 13 17 23 28 Peak Tracking Total 12 | . 5 5 2 8 7 7 . 4 1 . 3 7 5 2 4 10 6 5 7 12 3 4 10 . . . 1 5 3 5 5 9 6 Tactical Retreats 53 | . 3 1 1 1 2 6 . 2 . . . 2 . . . 9 3 1 . 1 2 7 2 . . . . 2 2 1 2 . 3 Traps | -11 -10 -9 -9 -8 -8 -8 -7 -7 -6 -6 -6 -6 -6 -6 -6 -5 -5 -5 -5 -4 -4 -4 -4 -4 -4 -4 -3 -3 -3 -3 -2 -1 -1 ------- Run | Yrd Mat Mat Min Mat Gar Mat Fac DSF Fac Was Fac Ext Cet Arc Hub Fac Upp Upp War Pro Fac Gar Fac Upp Upp Zhi Pro Res Qua Sec Res Acc Com Traps Triggered 24 | . 2 2 . . 6 . . 2 1 . . 4 . . . 1 . . . . . . 1 . . . . 3 2 . . . . Indirectly . | . . . . . . . . . . . . . . . . . . . . . . . . . . . . . . . . . . Trap Hack Attempts . | . . . . . . . . . . . . . . . . . . . . . . . . . . . . . . . . . . Triggered . | . . . . . . . . . . . . . . . . . . . . . . . . . . . . . . . . . . Disarmed . | . . . . . . . . . . . . . . . . . . . . . . . . . . . . . . . . . . Reprogrammed . | . . . . . . . . . . . . . . . . . . . . . . . . . . . . . . . . . . Reused . | . . . . . . . . . . . . . . . . . . . . . . . . . . . . . . . . . . Traps Extracted . | . . . . . . . . . . . . . . . . . . . . . . . . . . . . . . . . . . Installed . | . . . . . . . . . . . . . . . . . . . . . . . . . . . . . . . . . . Triggered . | . . . . . . . . . . . . . . . . . . . . . . . . . . . . . . . . . . Machines | -11 -10 -9 -9 -8 -8 -8 -7 -7 -6 -6 -6 -6 -6 -6 -6 -5 -5 -5 -5 -4 -4 -4 -4 -4 -4 -4 -3 -3 -3 -3 -2 -1 -1 ---------- Run | Yrd Mat Mat Min Mat Gar Mat Fac DSF Fac Was Fac Ext Cet Arc Hub Fac Upp Upp War Pro Fac Gar Fac Upp Upp Zhi Pro Res Qua Sec Res Acc Com Machines Disabled 110 | . . 3 . 1 4 4 . . . . . 7 1 4 19 8 . . 1 . 2 11 19 . . 2 1 3 5 8 . 5 2 Max in Single Turn 13 | . . 1 . 1 1 3 . . . . . 1 1 2 13 4 . . 1 . 2 2 4 . . 1 1 1 1 1 . 2 1 Garrison Access 9 | . . . . . . . . . . . 1 . . . 1 2 . . . . . . . . . . . 1 . . 3 1 . Garrison Relay 7 | . . . . . 3 . . . . . . . . . . . . . . . . 4 . . . . . . . . . . . Phase Generator 1 | . . . . . . . . . . . . . . . . . . . . . . 1 . . . . . . . . . . . Network Hub 1 | . . . . . . . . . . . . . . . 1 . . . . . . . . . . . . . . . . . . Machines Repaired . | . . . . . . . . . . . . . . . . . . . . . . . . . . . . . . . . . . Machines Dismantled 9 | . . . . . 1 . . . . . . 4 1 . . . . . 1 . . 1 . . . . . . 1 . . . . Machines Sabotaged . | . . . . . . . . . . . . . . . . . . . . . . . . . . . . . . . . . . Overloaded Fab Kills . | . . . . . . . . . . . . . . . . . . . . . . . . . . . . . . . . . . Hacking | -11 -10 -9 -9 -8 -8 -8 -7 -7 -6 -6 -6 -6 -6 -6 -6 -5 -5 -5 -5 -4 -4 -4 -4 -4 -4 -4 -3 -3 -3 -3 -2 -1 -1 --------- Run | Yrd Mat Mat Min Mat Gar Mat Fac DSF Fac Was Fac Ext Cet Arc Hub Fac Upp Upp War Pro Fac Gar Fac Upp Upp Zhi Pro Res Qua Sec Res Acc Com Machines Accessed 144 | . 7 7 . 12 3 5 2 . 1 . 11 12 . . 3 9 1 . 7 . 5 2 13 . . 5 . 8 10 8 3 6 4 Terminals 91 | . 6 5 . 7 3 4 2 . 1 . 5 12 . . 2 5 . . . . . 2 8 . . . . 5 9 7 . 4 4 Fabricators 4 | . . . . . . . . . . . 1 . . . . . . . . . 1 . . . . . . 1 . . 1 . . Repair Stations 4 | . . . . 1 . . . . . . 2 . . . . 1 . . . . . . . . . . . . . . . . . Recycling Units 10 | . 1 . . 2 . . . . . . 1 . . . . . . . . . 2 . 2 . . . . 1 . . 1 . . Scanalyzers 13 | . . 2 . 1 . 1 . . . . 1 . . . . 1 . . . . 1 . 3 . . . . . 1 1 . 1 . Garrison Access 9 | . . . . 1 . . . . . . 1 . . . 1 2 . . . . 1 . . . . . . 1 . . 1 1 . Total Hacks 421 | . 15 28 . 35 5 16 3 . 4 . 23 26 . . 3 35 1 . 20 . 12 5 52 . . 18 . 28 45 20 8 10 9 Successful 204 | . 11 18 . 19 1 8 1 . . . 14 10 . . 1 12 1 . 20 . 2 1 19 . . 18 . 12 21 7 3 2 3 Failed 215 | . 4 10 . 15 4 8 2 . 4 . 9 16 . . 2 23 . . . . 10 4 33 . . . . 16 24 12 5 8 6 Catastrophic 44 | . . 1 . 2 1 2 1 . . . 2 2 . . 1 6 . . . . 1 1 8 . . . . 4 7 2 . 3 . Database Lockouts 2 | . . . . 1 . . . . . . . . . . . . . . . . . . . . . . . . . 1 . . . Manual 173 | . 15 15 . 22 . 5 1 . 1 . 10 6 1 . 3 18 . . . . . . 31 . . . 1 17 14 5 3 1 4 Terminals 286 | . 14 21 . 20 5 13 3 . 4 . 10 26 . . 2 23 . . . . . 5 43 . . . . 21 42 18 . 7 9 Fabricators 7 | . . . . . . . . . . . 1 . . . . . . . . . 1 . . . . . . 1 . . 4 . . Repair Stations 18 | . . . . 6 . . . . . . 7 . . . . 5 . . . . . . . . . . . . . . . . . Recycling Units 21 | . 1 . . 3 . . . . . . 2 . . . . . . . . . 8 . 3 . . . . 3 . . 1 . . Scanalyzers 35 | . . 7 . 5 . 3 . . . . 2 . . . . 3 . . . . 2 . 6 . . . . . 3 2 . 2 . Garrison Access 15 | . . . . 1 . . . . . . 1 . . . 1 4 . . . . 1 . . . . . . 3 . . 3 1 . Terminal Hacks 98 | . 2 5 . . 1 1 1 . . . 4 9 . . . 3 1 . 20 . . 1 10 . . 18 . 4 12 4 . . 2 Record 29 | . . . . . . . . . . . . . . . . . . . 19 . . . . . . 6 . . 3 . . . 1 Part Schematic 7 | . 2 . . . . . . . . . . 1 . . . . . . . . . . . . . 4 . . . . . . . Robot Analysis 7 | . . 2 . . . . . . . . . . . . . . . . . . . . . . . 4 . . 1 . . . . Prototype ID Bank 6 | . . 1 . . . . . . . . . . . . . . . . . . . . 1 . . 4 . . . . . . . Open Door 10 | . . . . . . . . . . . . 5 . . . . 1 . 1 . . . . . . . . . . 2 . . 1 Open DSF 3 | . . . . . . . 1 . . . 1 . . . . . . . . . . . . . . . . 1 . . . . . Branch Access Points 4 | . . . . . . . . . . . 1 . . . . 1 . . . . . . 1 . . . . 1 . . . . . Emergency Access Points 4 | . . . . . 1 . . . . . . . . . . . . . . . . 1 . . . . . . 1 1 . . . Machine Index 1 | . . . . . . . . . . . . . . . . . . . . . . . . . . . . . 1 . . . . Terminal Index 3 | . . . . . . . . . . . . . . . . . . . . . . . . . . . . 1 1 1 . . . Alert Level 2 | . . . . . . . . . . . . . . . . . . . . . . . 2 . . . . . . . . . . Unreport Threat 12 | . . 2 . . . 1 . . . . 1 3 . . . . . . . . . . 3 . . . . 1 1 . . . . Locate Traps 2 | . . . . . . . . . . . . . . . . 1 . . . . . . 1 . . . . . . . . . . Dispatch Records 1 | . . . . . . . . . . . . . . . . . . . . . . . . . . . . . 1 . . . . Security Status 1 | . . . . . . . . . . . . . . . . . . . . . . . . . . . . . 1 . . . . Recall Investigation 1 | . . . . . . . . . . . . . . . . . . . . . . . 1 . . . . . . . . . . Recall Reinforcements 1 | . . . . . . . . . . . . . . . . . . . . . . . 1 . . . . . . . . . . Hauler Manifests 1 | . . . . . . . . . . . 1 . . . . . . . . . . . . . . . . . . . . . . Registered Components 2 | . . . . . . . . . . . . . . . . 1 . . . . . . . . . . . . 1 . . . . Zone Layout 1 | . . . . . . . . . . . . . . . . . . . . . . . . . . . . . 1 . . . . Fabricator Hacks 2 | . . . . . . . . . . . 1 . . . . . . . . . . . . . . . . . . . 1 . . Build 2 | . . . . . . . . . . . 1 . . . . . . . . . . . . . . . . . . . 1 . . Repair Station Hacks 12 | . . . . 5 . . . . . . 5 . . . . 2 . . . . . . . . . . . . . . . . . Scan Component 7 | . . . . 3 . . . . . . 3 . . . . 1 . . . . . . . . . . . . . . . . . Repair 5 | . . . . 2 . . . . . . 2 . . . . 1 . . . . . . . . . . . . . . . . . Recycling Unit Hacks 6 | . . . . . . . . . . . 1 . . . . . . . . . 1 . 2 . . . . 1 . . 1 . . Report Inventory 1 | . . . . . . . . . . . 1 . . . . . . . . . . . . . . . . . . . . . . Retrieve Components 5 | . . . . . . . . . . . . . . . . . . . . . 1 . 2 . . . . 1 . . 1 . . Scanalyzer 21 | . . 7 . 3 . 2 . . . . . . . . . 2 . . . . . . 3 . . . . . 2 1 . 1 . Insert Component 2 | . . 2 . . . . . . . . . . . . . . . . . . . . . . . . . . . . . . . Analyze 2 | . . 2 . . . . . . . . . . . . . . . . . . . . . . . . . . . . . . . Retrieve Study 17 | . . 3 . 3 . 2 . . . . . . . . . 2 . . . . . . 3 . . . . . 2 1 . 1 . Garrison Access Hacks 3 | . . . . 1 . . . . . . . . . . . 1 . . . . 1 . . . . . . . . . . . . Unlock Access 2 | . . . . 1 . . . . . . . . . . . . . . . . 1 . . . . . . . . . . . . Seal Access 1 | . . . . . . . . . . . . . . . . 1 . . . . . . . . . . . . . . . . . Unauthorized Hacks 62 | . 9 6 . 10 . 5 . . . . 3 1 . . 1 4 . . . . . . 4 . . . . 7 7 2 1 1 1 Terminals 52 | . 8 6 . 8 . 5 . . . . 1 1 . . . 3 . . . . . . 4 . . . . 6 7 2 . . 1 Track 2 | . . . . . . . . . . . . . . . . . . . . . . . . . . . . 1 1 . . . . Assimilate 9 | . . . . 1 . . . . . . . . . . . 3 . . . . . . 2 . . . . . 2 1 . . . Botnet 18 | . 3 1 . 2 . 1 . . . . 1 1 . . . . . . . . . . 2 . . . . 3 2 1 . . 1 Operators 2 | . . . . . . . . . . . . . . . . . . . . . . . . . . . . 1 1 . . . . Skim 21 | . 5 5 . 5 . 4 . . . . . . . . . . . . . . . . . . . . . 1 1 . . . . Fabricators . | . . . . . . . . . . . . . . . . . . . . . . . . . . . . . . . . . . Repair Stations . | . . . . . . . . . . . . . . . . . . . . . . . . . . . . . . . . . . Recycling Units 4 | . 1 . . 2 . . . . . . 1 . . . . . . . . . . . . . . . . . . . . . . Tunnel 4 | . 1 . . 2 . . . . . . 1 . . . . . . . . . . . . . . . . . . . . . . Scanalyzers . | . . . . . . . . . . . . . . . . . . . . . . . . . . . . . . . . . . Garrison Access 6 | . . . . . . . . . . . 1 . . . 1 1 . . . . . . . . . . . 1 . . 1 1 . Jam 6 | . . . . . . . . . . . 1 . . . 1 1 . . . . . . . . . . . 1 . . 1 1 . Data Cores Recovered 3 | . . . . . . . . . . . . 1 . . . . . . . . . . 1 . . . . . . . . 1 . Used 1 | . . . . . . . . . . . . 1 . . . . . . . . . . . . . . . . . . . . . Hacking Detections 88 | . 4 6 . 5 3 4 1 . 1 . 7 7 . . 2 6 . . . . 5 2 10 . . . . 5 6 5 1 5 3 Full Trace Events 2 | . . . . . . . . . . . 1 1 . . . . . . . . . . . . . . . . . . . . . Feedback Events . | . . . . . . . . . . . . . . . . . . . . . . . . . . . . . . . . . . Feedback Blocked . | . . . . . . . . . . . . . . . . . . . . . . . . . . . . . . . . . . Robot Schematics Acquired . | . . . . . . . . . . . . . . . . . . . . . . . . . . . . . . . . . . Robots Built . | . . . . . . . . . . . . . . . . . . . . . . . . . . . . . . . . . . Authchips . | . . . . . . . . . . . . . . . . . . . . . . . . . . . . . . . . . . Time . | . . . . . . . . . . . . . . . . . . . . . . . . . . . . . . . . . . Total Robot Build Rating . | . . . . . . . . . . . . . . . . . . . . . . . . . . . . . . . . . . Part Schematics Acquired 9 | . 2 2 . . . . . . . . . 1 . . . . . . . . . . . . . 4 . . . . . . . Parts Built 4 | . . . . . . . . . . . 2 . . . . . . . . . . . . . . . . . . . 2 . . Authchips . | . . . . . . . . . . . . . . . . . . . . . . . . . . . . . . . . . . Time 178 | . . . . . . . . . . . 39 . . . . . . . . . . . . . . . . . . . 139 . . Total Part Build Rating 32 | . . . . . . . . . . . 14 . . . . . . . . . . . . . . . . . . . 18 . . Part Studies Acquired 15 | . . 3 . 3 . 1 . . . . . . . . . 2 . . . . . . 2 . . . . . 2 1 . 1 . Parts Repaired 5 | . . . . 2 . . . . . . 2 . . . . 1 . . . . . . . . . . . . . . . . . Time 262 | . . . . 64 . . . . . . 130 . . . . 68 . . . . . . . . . . . . . . . . . Parts Recycled . | . . . . . . . . . . . . . . . . . . . . . . . . . . . . . . . . . . Recycled Matter . | . . . . . . . . . . . . . . . . . . . . . . . . . . . . . . . . . . Retrieved Matter . | . . . . . . . . . . . . . . . . . . . . . . . . . . . . . . . . . . Retrieved Components 11 | . . . . . . . . . . . . . . . . . . . . . 3 . 3 . . . . 2 . . 3 . . Parts Scanalyzed 2 | . . 2 . . . . . . . . . . . . . . . . . . . . . . . . . . . . . . . Part Schematics Acquired 2 | . . 2 . . . . . . . . . . . . . . . . . . . . . . . . . . . . . . . Parts Damaged . | . . . . . . . . . . . . . . . . . . . . . . . . . . . . . . . . . . Bothacking | -11 -10 -9 -9 -8 -8 -8 -7 -7 -6 -6 -6 -6 -6 -6 -6 -5 -5 -5 -5 -4 -4 -4 -4 -4 -4 -4 -3 -3 -3 -3 -2 -1 -1 ------------ Run | Yrd Mat Mat Min Mat Gar Mat Fac DSF Fac Was Fac Ext Cet Arc Hub Fac Upp Upp War Pro Fac Gar Fac Upp Upp Zhi Pro Res Qua Sec Res Acc Com Used RIF Installer . | . . . . . . . . . . . . . . . . . . . . . . . . . . . . . . . . . . Robots Hacked 2 | . . . . . . . . . . . . . . . . . . . 2 . . . . . . . . . . . . . . Non-combat . | . . . . . . . . . . . . . . . . . . . . . . . . . . . . . . . . . . Combat 2 | . . . . . . . . . . . . . . . . . . . 2 . . . . . . . . . . . . . . Robot Hacks Applied 2 | . . . . . . . . . . . . . . . . . . . 2 . . . . . . . . . . . . . . parse_system 2 | . . . . . . . . . . . . . . . . . . . 2 . . . . . . . . . . . . . . Relay Couplers Released 32 | . . . . . 11 . . . . . . . . . . 4 . . . . . 15 . . . . . . . . 2 . . Machine Destruction 29 | . . . . . 11 . . . . . . . . . . 1 . . . . . 15 . . . . . . . . 2 . . Programmers 3 | . . . . . . . . . . . . . . . . 3 . . . . . . . . . . . . . . . . . Fabnet Peak Effective % . | . . . . . . . . . . . . . . . . . . . . . . . . . . . . . . . . . . Robots Rewired 34 | . . . . . 6 . . . . . . 13 . . . . . . 5 2 . 8 . . . . . . . . . . . Allies Hacked 2 | . . . . . . . . . . . . 1 . . . . . . 1 . . . . . . . . . . . . . . Hacks Repelled . | . . . . . . . . . . . . . . . . . . . . . . . . . . . . . . . . . . Allies | -11 -10 -9 -9 -8 -8 -8 -7 -7 -6 -6 -6 -6 -6 -6 -6 -5 -5 -5 -5 -4 -4 -4 -4 -4 -4 -4 -3 -3 -3 -3 -2 -1 -1 -------- Run | Yrd Mat Mat Min Mat Gar Mat Fac DSF Fac Was Fac Ext Cet Arc Hub Fac Upp Upp War Pro Fac Gar Fac Upp Upp Zhi Pro Res Qua Sec Res Acc Com Total Allies 61 | . . . . 1 6 . . . . . . 26 5 . . 3 . . 5 2 . 8 2 . . . . . 2 1 . . . Largest Group 14 | . . . . 1 6 . . . . . . 14 12 8 5 2 . . 5 2 1 4 5 . . . . . 1 1 1 . . Highest-Rated Group 689 | . . . . 10 96 . . . . . . 491 689 689 423 36 . . 219 96 49 316 342 . . . . . 26 10 10 . . Highest-Rated Ally 159 | . . . . 10 16 . . . . . . 159 150 150 96 26 . . 49 49 49 119 119 . . . . . 26 10 10 . . Initial Warlord ECA Mod 22 | . . . . . . 7 6 6 15 15 15 15 15 15 15 14 14 14 14 13 13 13 22 22 22 22 21 21 21 21 20 19 19 Total Orders 4 | . . . . . 1 . . . . . . . . 2 1 . . . . . . . . . . . . . . . . . . STAY 3 | . . . . . 1 . . . . . . . . 1 1 . . . . . . . . . . . . . . . . . . FOLLOW 1 | . . . . . . . . . . . . . . 1 . . . . . . . . . . . . . . . . . . . Ally Attacks 454 | . . . . . 87 . . . . . . 144 31 14 67 . . . 37 21 3 19 31 . . . . . . . . . . Total Damage 11672 | . . . . . 964 . . . . . . 3108 613 603 2272 . . . 1284 549 119 520 1640 . . . . . . . . . . Kills 82 | . . . . . 10 . . . . . . 20 4 4 11 . . . 9 5 . 6 13 . . . . . . . . . . Allies Corrupted . | . . . . . . . . . . . . . . . . . . . . . . . . . . . . . . . . . . Allies Melted 1 | . . . . . . . . . . . . 1 . . . . . . . . . . . . . . . . . . . . . Intel | -11 -10 -9 -9 -8 -8 -8 -7 -7 -6 -6 -6 -6 -6 -6 -6 -5 -5 -5 -5 -4 -4 -4 -4 -4 -4 -4 -3 -3 -3 -3 -2 -1 -1 ------- Run | Yrd Mat Mat Min Mat Gar Mat Fac DSF Fac Was Fac Ext Cet Arc Hub Fac Upp Upp War Pro Fac Gar Fac Upp Upp Zhi Pro Res Qua Sec Res Acc Com Active Infowar (turns) 13193 | 47 725 . 63 520 . . . . . . 1222 . . 58 471 1154 232 96 485 522 919 362 1268 218 258 631 157 646 431 515 1211 566 416 Optics 1572 | . . . . . . . . . . . . . . . . . . . . . . . . . . . . . . . 1032 540 . Sensors 8544 | . . . . . . . . . . . 1220 . . 58 423 877 232 96 485 522 430 . . 199 258 631 97 477 431 515 1203 390 . IFF 20 | . . . . . . . . . . . . . . . . . . . . . . . . . . . . . . . 20 . . Zeronet 470 | . . . . . . . . . . . . . . . . . . . . . . . . . . . . . . . . 178 292 Terrain 4844 | 47 242 . . . . . . . . . . . . . . 242 171 . . . 152 361 1268 218 258 630 157 551 61 . 2 484 . Structural 4340 | . 483 . 63 520 . . . . . . . . . . . . . . . . . . . 205 258 631 157 344 338 515 326 500 . Seismic 2 | . . . . . . . . . . . . . . . . . . . . . . . . . . . . . . . 2 . . T.N.C. 246 | . . . . . . . . . . . . . . . . . . . . . . . . . . . . . . . 246 . . Cloaking 1094 | . . . . . . . . . . . . . . . . . . . . . . . . . . . . 386 392 316 . . . Jamming 3633 | . . . . . . . . . . . 429 . . . 48 725 . . . . 420 362 . . . . . 541 261 . 4 431 412 Robot Analysis Total 7 | . . 2 . . . . . . . . . . . . . . . . . . . . . . . 4 . . 1 . . . . Derelict Logs Recovered 6 | . . . 1 . . . . . . . . . . . . . 2 1 . 1 . . . 1 . . . . . . . . . Drone Launches . | . . . . . . . . . . . . . . . . . . . . . . . . . . . . . . . . . . Drone Recoveries . | . . . . . . . . . . . . . . . . . . . . . . . . . . . . . . . . . . Exploration | -11 -10 -9 -9 -8 -8 -8 -7 -7 -6 -6 -6 -6 -6 -6 -6 -5 -5 -5 -5 -4 -4 -4 -4 -4 -4 -4 -3 -3 -3 -3 -2 -1 -1 ------------- Run | Yrd Mat Mat Min Mat Gar Mat Fac DSF Fac Was Fac Ext Cet Arc Hub Fac Upp Upp War Pro Fac Gar Fac Upp Upp Zhi Pro Res Qua Sec Res Acc Com Turns Passed 24947 | 109 1130 1596 96 1875 1222 1114 190 349 177 626 1667 1109 320 452 530 1355 232 96 485 522 961 1594 1686 218 258 675 157 737 443 515 1211 566 674 Spaces Moved 20558 | 59 453 781 60 988 731 340 179 191 116 538 1005 540 124 263 357 1188 497 323 861 337 594 762 1114 196 240 219 227 939 790 796 2803 976 971 Core 19 | 16 . . . . . . . . . . . . . . . . . . 1 . . . . . . . . . . . . . 2 Treads 896 | . . . . . . . . . . . . . . . . . . . . . 69 762 65 . . . . . . . . . . Legs 9827 | 43 448 781 60 988 731 340 179 191 116 538 1005 540 124 263 357 454 . . 195 337 525 . 1049 196 240 84 . 43 . . . . . Wheels 5 | . 5 . . . . . . . . . . . . . . . . . . . . . . . . . . . . . . . . Hover 616 | . . . . . . . . . . . . . . . . . . . . . . . . . . 135 227 254 . . . . . Flight 9175 | . . . . . . . . . . . . . . . . 734 497 323 665 . . . . . . . . 642 790 778 2803 974 969 Fastest Speed 25 | 50 100 105 105 97 105 97 97 97 105 105 105 118 112 112 117 27 27 27 27 110 115 145 104 104 104 40 40 26 34 34 28 25 25 Average Speed 75 | 113 121 110 105 105 114 120 97 108 105 105 110 118 112 117 117 65 27 27 44 114 118 148 111 104 104 73 62 41 34 34 31 25 26 Slowest Speed 260 | 150 190 120 105 245 120 188 97 183 105 105 186 118 118 118 118 190 27 27 150 116 225 152 260 104 104 175 102 119 34 34 104 95 200 Overloaded Moves . | . . . . . . . . . . . . . . . . . . . . . . . . . . . . . . . . . . Propulsion Burnouts . | . . . . . . . . . . . . . . . . . . . . . . . . . . . . . . . . . . Robots Hopped 73 | . . . . . . . . . . . . . . . . 10 7 . 5 . . . . . . . . 6 . 6 13 2 24 Potential Cave-ins 8 | . . . . . . . . . . . 3 . . . . . . . . . . . . . . . . . . 2 . 3 . Cave-ins Triggered 1 | . . . . . . . . . . . . . . . . . . . . . . . . . . . . . . 1 . . . Teleports 2 | . . . . . . . . . . . . . . . . . . . . . . . . . . . . . 1 1 . . . Spacefolds 10 | . . . . . . . . . . . . . . . . . . . . . . . . . . . . . . 9 . 1 . Exploration Rate (%) 49 | 3 77 67 24 70 67 45 4 91 5 96 32 77 58 81 29 37 71 43 87 50 14 69 34 47 44 60 48 19 56 50 65 33 27 Regions Visited 33 Branch Regions 16 Pre-discovered Areas 14 | . 1 2 1 5 . . . . . . 1 . . . . . 1 . . . . . . . . 3 . . . . . . . Known Exits Taken 22 | . 1 . 1 1 . 1 1 . . . 1 1 1 1 1 1 1 1 1 1 1 . 1 . . . . 1 1 1 1 1 . Unknown Exits Taken 6 | 1 . 1 . . . . . . . . . . . . . . . . . . . . . 1 1 1 1 . . . . . . Scrap Searched 11 | . . . . . . . . . . . . . . . . . 4 1 . 2 . . . 2 1 . 1 . . . . . . Spaces Dug 173 | . . . . . . . . . . . 7 . . . . 8 34 16 . . 1 1 9 . 5 . . 6 2 8 4 60 12 Terrain Destroyed 1407 | . . 1 . 17 27 160 . . . . 10 31 2 5 159 87 110 16 118 28 1 182 206 . 6 . . 7 2 8 4 131 89 Melee 45 | . . . . . . . . . . . . . . . . 5 . . . . . 1 5 . . . . 3 2 8 4 14 3 Projectile 302 | . . . . . . . . . . . 10 5 2 5 3 9 . . . . 1 77 45 . 6 . . 4 . . . 49 86 AOE 1059 | . . 1 . 17 27 160 . . . . . 26 . . 156 72 110 16 118 28 . 104 156 . . . . . . . . 68 . Terrain Rammed . | . . . . . . . . . . . . . . . . . . . . . . . . . . . . . . . . . . Walls Destroyed . | . . . . . . . . . . . . . . . . . . . . . . . . . . . . . . . . . . Machines Disabled . | . . . . . . . . . . . . . . . . . . . . . . . . . . . . . . . . . . Actions | -11 -10 -9 -9 -8 -8 -8 -7 -7 -6 -6 -6 -6 -6 -6 -6 -5 -5 -5 -5 -4 -4 -4 -4 -4 -4 -4 -3 -3 -3 -3 -2 -1 -1 --------- Run | Yrd Mat Mat Min Mat Gar Mat Fac DSF Fac Was Fac Ext Cet Arc Hub Fac Upp Upp War Pro Fac Gar Fac Upp Upp Zhi Pro Res Qua Sec Res Acc Com Total 28162 | 81 919 1417 81 1615 992 980 193 286 172 602 1497 873 263 334 422 1590 574 330 940 440 832 1180 1479 209 243 699 238 1223 915 949 3100 1233 1261 Wait 4403 | . 358 521 14 431 71 577 8 20 38 35 387 95 102 6 38 168 65 5 3 22 123 135 93 10 . 389 6 145 45 63 76 177 177 Move 20384 | 58 452 780 59 988 730 339 178 190 116 537 1004 539 123 262 356 1168 482 322 851 336 594 759 1113 195 239 218 226 926 789 773 2782 969 931 Hop 57 | . . . . . . . . . . . . . . . . 9 7 . 4 . . . . . . . . 6 . 6 7 2 16 Pick Up 249 | 5 10 11 1 18 7 3 . 4 3 9 8 5 1 5 1 26 1 . 10 3 5 9 40 1 1 8 . 12 8 7 6 10 11 Fast Attach 340 | 7 3 11 . 21 7 2 2 9 3 7 6 3 1 5 . 14 2 1 9 8 15 6 19 . . 10 1 27 8 20 95 1 17 Attach 173 | . 6 4 1 7 3 3 1 3 2 . 4 5 5 5 2 32 2 . 6 3 1 5 12 1 . 5 . 19 6 8 2 8 12 Detach 73 | . . . . 3 . . . 1 1 . 4 2 4 . . 12 1 1 1 . 1 . 4 . . . . 9 2 5 13 1 8 Swap 218 | 1 10 13 . 13 10 10 3 9 . . 21 10 1 1 3 14 2 . 2 1 9 8 26 2 . 2 1 8 2 7 8 14 7 Drop 459 | . 9 23 . 20 12 7 1 6 7 14 13 7 2 9 . 39 1 . 16 3 20 9 35 . . 28 2 33 11 14 93 8 17 Fire 1114 | 10 71 54 6 112 80 39 . 12 2 . 47 47 16 41 22 98 9 1 11 3 42 131 121 . 3 38 2 25 . . 5 20 46 Melee 263 | . . . . . 1 . . 21 . . . . . . . 10 2 . 15 27 21 20 5 . . 1 . 13 28 45 13 22 19 Ram . | . . . . . . . . . . . . . . . . . . . . . . . . . . . . . . . . . . Kick 17 | . . . . 2 . . . 2 . . 3 1 . . . . . . . . 1 . 8 . . . . . . . . . . Crush . | . . . . . . . . . . . . . . . . . . . . . . . . . . . . . . . . . . Escape Stasis 42 | . . . . . 4 . . 9 . . . 14 . . . . . . . . . . 3 . . . . . 10 1 . 1 . Rewire 302 | . . . . . 63 . . . . . . 112 . . . . . . 4 34 . 89 . . . . . . . . . . . Trap . | . . . . . . . . . . . . . . . . . . . . . . . . . . . . . . . . . . Miscellaneous 68 | . . . . . 4 . . . . . . 33 8 . . . . . 8 . . 9 . . . . . . 6 . . . . Route ------- -11/Scrapyard -10/Materials (discovered 6 exits: *Mat x3 / *Min x2 / Sub) -9/Materials (discovered 6 exits: *Mat x2 / [*Min x2] / *Sto x2) -9/Mines -8/Materials (discovered 4 exits: *Fac x3 / Gar) -8/Garrison -8/Materials (discovered 3 exits: *Fac x3) -7/Factory (discovered 3 exits: Fac x2 / DSF) -7/DSF -6/Factory -6/Waste -6/Factory (discovered 4 exits: *Low x2 / *Ext x2) -6/Extension (discovered 2 exits: *Fac / *Cet) -6/Cetus -6/Archives (discovered 3 exits: *Fac / *Hub x2) -6/Hub_04(d) (discovered 2 exits: *Fac x2) -5/Factory (discovered 4 exits: *Fac x2 / *Upp x2) -5/Upper Caves -5/Upper Caves -5/Warlord -4/Proximity Caves -4/Factory -4/Garrison (discovered 2 exits: *Fac x2) -4/Factory (discovered 2 exits: *Upp x2) -4/Upper Caves -4/Upper Caves (discovered 2 exits: Res / *Zhi) -4/Zhirov -3/Proximity Caves -3/Research (discovered 4 exits: *Res / Arm / *Qua x2) -3/Quarantine (discovered 2 exits: *Sec / *Frg) -3/Section 7 -2/Research (discovered 2 exits: *Acc x2) -1/Access -1/Command To Fleet Rendezvous History --------- Turn | Location | Event 27 | -11/Scrapyard | Discovered new exit (range 15) 110 | -11/Scrapyard | Entered Materials 303 | -10/Materials | Build established: Mutant 319 | -10/Materials | Discovered new exit (range 9) 464 | -10/Materials | Discovered new exit (range 13) 692 | -10/Materials | Core integrity fell below 50% 717 | -10/Materials | Lost 3 parts (1p2w) 730 | -10/Materials | Discovered new exit (range 5) 894 | -10/Materials | Learned location of 2 exits from Subcaves 911 | -10/Materials | Core integrity fell below 20% 953 | -10/Materials | Learned 4 Recycling zone layouts 977 | -10/Materials | Build established: Scavenger-Mutant 1001 | -10/Materials | Loaded intel: 18 trap records 1038 | -10/Materials | Learned Storage trap positions 1066 | -10/Materials | Loaded intel: 1 repair station location 1110 | -10/Materials | Identified exit to Mines 1144 | -10/Materials | Identified exit to Subcaves 1144 | -10/Materials | Identified exit to Materials 1144 | -10/Materials | Learned location of 1 exit from Materials 1187 | -10/Materials | Learned Storage security intel 1240 | -10/Materials | Entered another Materials area 1240 | -9/Materials | Evolved 2 slots: Propulsion x1, Utility x1 1241 | -9/Materials | Identified exit to Materials 1679 | -9/Materials | Discovered new exit (range 14) 1832 | -9/Materials | Discovered exit to Materials (range 16) 1949 | -9/Materials | Discovered new exit (range 5) 1954 | -9/Materials | Build established: Mutant 2075 | -9/Materials | Discovered new exit (range 15) 2175 | -9/Materials | Learned location of 3 exits from Materials 2246 | -9/Materials | Identified exit to Storage 2308 | -9/Materials | Learned Storage terminal intel 2359 | -9/Materials | Learned 2 Storage zone layouts 2398 | -9/Materials | Loaded intel: 10 trap records 2426 | -9/Materials | Learned location of 1 exit from Recycling 2466 | -9/Materials | Learned location of Storage (-9) 2574 | -9/Materials | Learned location of 1 exit from Recycling 2836 | -9/Materials | Entered Mines 2837 | -9/Mines | Assembled infested the area 2916 | -9/Mines | Discovered exit to Materials (range 16) 2932 | -9/Mines | Entered Materials 2932 | -8/Materials | Evolved 2 slots: Propulsion x1, Utility x1 2933 | -8/Materials | Identified exit to Factory 2970 | -8/Materials | Repaired EM Shotgun 3003 | -8/Materials | Repaired EM Shotgun 3528 | -8/Materials | Garrison activated, responded to threat 3693 | -8/Materials | Core integrity fell below 50% 3730 | -8/Materials | System corruption reached 10% 3756 | -8/Materials | Lost 10 parts (2p4n1u3w) 4032 | -8/Materials | Build established: Scavenger-Mutant 4285 | -8/Materials | Learned Factory trap positions 4321 | -8/Materials | Central database locked down 4340 | -8/Materials | Learned location of Zion (-7) 4385 | -8/Materials | Learned 8 Factory zone layouts 4449 | -8/Materials | Learned location of 1 exit from Storage 4468 | -8/Materials | Learned 2 Storage zone layouts 4525 | -8/Materials | Learned Factory emergency access door positions 4678 | -8/Materials | Build established: Mutant 4807 | -8/Materials | Identified exit to Garrison 4807 | -8/Materials | Entered Garrison 4824 | -8/Garrison | Triggered checkpoint 4848 | -8/Garrison | Garrison Relay disabled 4942 | -8/Garrison | Triggered checkpoint 4967 | -8/Garrison | Triggered checkpoint 4974 | -8/Garrison | Destroyed 8 combat bots 4982 | -8/Garrison | Triggered checkpoint 5043 | -8/Garrison | Triggered checkpoint 5095 | -8/Garrison | Triggered checkpoint 5169 | -8/Garrison | Triggered checkpoint 5230 | -8/Garrison | Garrison Relay disabled 5426 | -8/Garrison | Discovered new exit (range 15) 5589 | -8/Garrison | Build established: Commander-Mutant 5596 | -8/Garrison | Triggered checkpoint 5656 | -8/Garrison | Garrison Relay disabled 5911 | -8/Garrison | Build established: Scavenger-Mutant 5929 | -8/Garrison | Spotted B-75 Beast 6029 | -8/Garrison | Entered Materials 6059 | -8/Materials | Core integrity fell below 20% 6273 | -8/Materials | Garrison activated, responded to threat 6449 | -8/Materials | Build established: Mutant 6743 | -8/Materials | Garrison activated, responded to threat 7143 | -8/Materials | Entered Factory 7143 | -7/Factory | Evolved 2 slots: Utility x1, Weapon x1 7144 | -7/Factory | Identified exit to Factory 7145 | -7/Factory | Loaded intel: 86 trap records 7332 | -7/Factory | Identified exit to DSF 7333 | -7/Factory | Entered DSF 7369 | -7/DSF | Additional patrols routed to DSF 7463 | -7/DSF | Lost 7 parts (1n3u3w) 7536 | -7/DSF | Discovered exit to Factory (range 15) 7617 | -7/DSF | Sterilization system engaged 7637 | -7/DSF | Ambient heat levels rising (+10) 7652 | -7/DSF | Ambient heat levels rising (+10) 7667 | -7/DSF | Ambient heat levels rising (+10) 7682 | -7/DSF | Ambient heat levels rising (+10) 7682 | -7/DSF | Entered Factory 7682 | -6/Factory | Evolved 2 slots: Propulsion x1, Utility x1 7859 | -6/Factory | Sucked down chute 7859 | -6/Factory | Entered Waste 7859 | -6/Waste | The area was eerily silent 7909 | -6/Waste | Build established: Scavenger-Gunner 7939 | -6/Waste | Discovered new exit (range 11) 8485 | -6/Waste | Entered Factory 8534 | -6/Factory | Discovered new exit (range 12) 8643 | -6/Factory | Repaired Biometal Leg 8707 | -6/Factory | Repaired Antimatter Reactor? 8843 | -6/Factory | Fabricated Imp. Linear Gravjet (x2) 8943 | -6/Factory | Identified exit to Lower Caves 9057 | -6/Factory | Build established: Scavenger-Skirmisher 9346 | -6/Factory | Discovered exit to Lower Caves (range 10) 9733 | -6/Factory | Identified exit to Extension 10152 | -6/Factory | Entered Extension 10186 | -6/Extension | Rescued a captive Derelict 10188 | -6/Extension | Rescued a captive Derelict 10245 | -6/Extension | Rescued A7 10289 | -6/Extension | Rescued a captive Derelict 10290 | -6/Extension | Rescued a captive Derelict 10334 | -6/Extension | Rescued a captive Derelict 10452 | -6/Extension | Disrupted transfer network 10543 | -6/Extension | Lost 5 allies 10553 | -6/Extension | Rescued a captive Derelict 10555 | -6/Extension | Rescued a captive Derelict 10625 | -6/Extension | Spotted B-75 Beast 10628 | -6/Extension | Spotted B-75 Beast 10684 | -6/Extension | Destroyed B-75 Beast 10687 | -6/Extension | Destroyed B-75 Beast 10706 | -6/Extension | Lost 4 allies 10770 | -6/Extension | Rescued a captive Derelict 10855 | -6/Extension | Rescued a captive Derelict 10897 | -6/Extension | Rescued a captive Derelict 11034 | -6/Extension | Build established: Commander-Tank 11134 | -6/Extension | Rescued a captive Derelict 11136 | -6/Extension | Rescued a captive Derelict 11167 | -6/Extension | Discovered new exit (range 10) 11168 | -6/Extension | Discovered new exit (range 6) 11174 | -6/Extension | Identified exit to Cetus 11247 | -6/Extension | Identified exit to Factory 11261 | -6/Extension | Entered Cetus 11261 | -6/Cetus | Accompanied by 12 allies (A7) 11266 | -6/Cetus | Acquired a Cetus Manufacturing Module code from A7 11285 | -6/Cetus | Spotted Cetus Guard 11285 | -6/Cetus | Spotted Cetus Guard 11289 | -6/Cetus | Spotted Cetus Guard 11290 | -6/Cetus | Spotted Cetus Guard 11293 | -6/Cetus | Destroyed Cetus Guard 11310 | -6/Cetus | Destroyed Cetus Guard 11321 | -6/Cetus | Destroyed Cetus Guard 11322 | -6/Cetus | Allies destroyed Cetus Guard 11350 | -6/Cetus | Lost 3 parts (2n1w) 11356 | -6/Cetus | Lost 9 allies 11409 | -6/Cetus | Started Cetus Manufacturing Module 11434 | -6/Cetus | Manufactured an Enhanced Grunt 11442 | -6/Cetus | Escorted A7 to Cetus Mainframe 11459 | -6/Cetus | Manufactured an Enhanced Grunt 11459 | -6/Cetus | Discovered new exit (range 15) 11484 | -6/Cetus | Manufactured an Enhanced Grunt 11509 | -6/Cetus | Manufactured an Enhanced Grunt 11534 | -6/Cetus | Manufactured an Enhanced Grunt 11549 | -6/Cetus | Identified exit to Archives 11581 | -6/Cetus | Entered Archives 11581 | -6/Archives | Accompanied by 8 allies (A7) 11586 | -6/Archives | Received a hacking code to weaken MAIN.C 11637 | -6/Archives | Discovered new exit (range 15) 11654 | -6/Archives | Discovered exit to Factory (range 16) 11678 | -6/Archives | Discovered new exit (range 13) 11886 | -6/Archives | Build established: Scavenger-Tank 12026 | -6/Archives | Identified exit to Hub_04(d) 12033 | -6/Archives | Entered Hub_04(d) 12033 | -6/Hub_04(d) | Accompanied by 5 allies 12243 | -6/Hub_04(d) | Build established: Scavenger-Skirmisher 12378 | -6/Hub_04(d) | Discovered exit to Factory (range 16) 12518 | -6/Hub_04(d) | Discovered exit to Factory (range 11) 12560 | -6/Hub_04(d) | Network Hub disabled 12563 | -6/Hub_04(d) | Entered Factory 12563 | -5/Factory | Evolved 2 slots: Power x1, Utility x1 12583 | -5/Factory | Lost 3 allies 12730 | -5/Factory | Discovered new exit (range 12) 12743 | -5/Factory | Identified exit to Factory 12863 | -5/Factory | First assault squad dispatched 12947 | -5/Factory | Repaired Biometal Leg 13192 | -5/Factory | Lost 6 parts (1p2n2u1w) 13226 | -5/Factory | Destroyed 9 combat bots 13475 | -5/Factory | Garrison activated, responded to threat 13485 | -5/Factory | Lost 4 parts (1p2u1w) 13565 | -5/Factory | Lost 3 parts (2p1u) 13652 | -5/Factory | Discovered exit to Factory (range 8) 13691 | -5/Factory | Spotted B-75 Beast 13737 | -5/Factory | Identified exit to Upper Caves 13918 | -5/Factory | Entered Upper Caves 13939 | -5/Upper Caves | Spotted B-75 Beast 13953 | -5/Upper Caves | Met a Warlord Commander 13954 | -5/Upper Caves | Learned location of Warlord (-5) 13955 | -5/Upper Caves | Warlord Commander delivered Encrypted Comm Array 13956 | -5/Upper Caves | Found Encrypted Comm Array 14008 | -5/Upper Caves | Build established: Scout 14022 | -5/Upper Caves | Learned Factory stockpile data 14032 | -5/Upper Caves | Learned Factory non-interactive machine intel 14035 | -5/Upper Caves | Attracted the attention of an 0b10 checkpoint 14106 | -5/Upper Caves | Discovered new exit (range 13) 14150 | -5/Upper Caves | Identified exit to Upper Caves 14150 | -5/Upper Caves | Entered another Upper Caves area 14231 | -5/Upper Caves | Learned Factory security intel 14244 | -5/Upper Caves | Discovered new exit (range 6) 14246 | -5/Upper Caves | Identified exit to Warlord 14246 | -5/Upper Caves | Entered Warlord 14254 | -5/Warlord | Discovered new exit (range 9) 14429 | -5/Warlord | Warlord's base attacked by MAIN.C 14457 | -5/Warlord | Met Warlord 14483 | -5/Warlord | Found Prototype Device 14486 | -5/Warlord | Found Prototype Reactor 14491 | -5/Warlord | Found Prototype Processor 14496 | -5/Warlord | Found Exp. Focal Shield 14533 | -5/Warlord | Found Prototype Piercing Weapon 14533 | -5/Warlord | Identified Vortex Lance 14536 | -5/Warlord | Found Vortex Lance 14539 | -5/Warlord | Found Prototype Energy Cannon 14541 | -5/Warlord | Found Prototype Energy Cannon 14544 | -5/Warlord | Found Prototype Energy Gun 14548 | -5/Warlord | Found Prototype Energy Gun 14634 | -5/Warlord | Warlord forces counterattacked 14639 | -5/Warlord | Identified Vortex Chain Reactor 14675 | -5/Warlord | Destroyed 10 combat bots 14728 | -5/Warlord | Identified exit to Proximity Caves 14731 | -5/Warlord | Entered Proximity Caves 14731 | -4/Proximity Caves | Accompanied by 2 allies 14744 | -4/Proximity Caves | Attracted the attention of an 0b10 outpost 14794 | -4/Proximity Caves | Core integrity fell below 50% 14812 | -4/Proximity Caves | Lost 4 parts (2n1u1w) 14815 | -4/Proximity Caves | Destroyed 11 combat bots 14975 | -4/Proximity Caves | Lost 3 parts (2n1u) 15253 | -4/Proximity Caves | Entered Factory 15253 | -4/Factory | Accompanied by 1 ally 15253 | -4/Factory | Evolved 2 slots: Propulsion x1, Utility x1 15256 | -4/Factory | Loaded intel: 232 non-interactive machine locations 15355 | -4/Factory | Build established: Gladiator 15637 | -4/Factory | Found Quantum Capacitor 15638 | -4/Factory | Identified Vortex Driver (x2) 15652 | -4/Factory | Identified Exp. Phase Shifter 15668 | -4/Factory | Identified Exp. Core Analyzer 15702 | -4/Factory | Identified Vortex Rail (x2) 15932 | -4/Factory | Build established: Mutant 16214 | -4/Factory | Identified exit to Garrison 16214 | -4/Factory | Entered Garrison 16235 | -4/Garrison | Triggered checkpoint 16271 | -4/Garrison | Triggered checkpoint 16291 | -4/Garrison | Garrison Relay disabled 16460 | -4/Garrison | Triggered checkpoint 16462 | -4/Garrison | Triggered checkpoint 16504 | -4/Garrison | Lost 3 allies 16691 | -4/Garrison | Spotted B-86 Titan 16705 | -4/Garrison | Triggered checkpoint 16707 | -4/Garrison | Destroyed B-86 Titan 16909 | -4/Garrison | Triggered checkpoint 16950 | -4/Garrison | Garrison Relay disabled 17208 | -4/Garrison | Triggered checkpoint 17225 | -4/Garrison | Build established: Scavenger-Mutant 17277 | -4/Garrison | Garrison Relay disabled 17372 | -4/Garrison | Discovered new exit (range 12) 17416 | -4/Garrison | Phase Generator disabled 17528 | -4/Garrison | Discovered new exit (range 15) 17562 | -4/Garrison | Rewired Executioner 17576 | -4/Garrison | Rewired Executioner 17614 | -4/Garrison | Triggered checkpoint 17637 | -4/Garrison | Garrison Relay disabled 17684 | -4/Garrison | Attempted to access garrison exit controls, blocked by remote lockdown 17808 | -4/Garrison | Entered Factory 17808 | -4/Factory | Accompanied by 4 allies 18058 | -4/Factory | First assault squad dispatched 18100 | -4/Factory | Build established: Commander-Mutant 18419 | -4/Factory | Spotted B-86 Titan 18419 | -4/Factory | Allies destroyed B-86 Titan 18664 | -4/Factory | Found Prototype Processor 18665 | -4/Factory | Identified Exp. Targeting Computer 18723 | -4/Factory | Found Corrupted Prototype Device 18728 | -4/Factory | Identified Adv. Kinecellerator 19022 | -4/Factory | Destroyed 8 combat bots 19205 | -4/Factory | Identified exit to Upper Caves 19286 | -4/Factory | Build established: Scavenger-Gunner 19354 | -4/Factory | Cargo convoy interrupted 19383 | -4/Factory | Destroyed 9 combat bots 19431 | -4/Factory | Destroyed 8 combat bots 19471 | -4/Factory | Spotted Executioner 19494 | -4/Factory | Entered Upper Caves 19626 | -4/Upper Caves | Learned Research stockpile data 19697 | -4/Upper Caves | Discovered new exit (range 11) 19712 | -4/Upper Caves | Entered another Upper Caves area 19719 | -4/Upper Caves | Discovered new exit (range 20) 19800 | -4/Upper Caves | Build established: Scavenger-Skirmisher 19951 | -4/Upper Caves | Discovered new exit (range 14) 19970 | -4/Upper Caves | Entered Zhirov 19970 | -4/Zhirov | Discovered new exit (range 3) 19991 | -4/Zhirov | Met Zhirov 20014 | -4/Zhirov | Learned location of Quarantine (-3) 20014 | -4/Zhirov | Learned location of Testing (-2) 20014 | -4/Zhirov | Learned location of Command (-1) 20019 | -4/Zhirov | Zhirov requested help retrieving the SGEMP Prototype 20036 | -4/Zhirov | Found Alien Artifact 20036 | -4/Zhirov | Identified Integrated Dissipator 20036 | -4/Zhirov | Installed Integrated Dissipator, increased core heat dissipation (+20) 20601 | -4/Zhirov | Found Alien Artifact 20645 | -4/Zhirov | Entered Proximity Caves 20650 | -3/Proximity Caves | Acquired the password to a Derelict Tinkerer's latest research 20652 | -3/Proximity Caves | Found Prototype Special Weapon 20652 | -3/Proximity Caves | Identified Molecular Deconstructor 20719 | -3/Proximity Caves | Spotted B-86 Titan 20796 | -3/Proximity Caves | Discovered new exit (range 5) 20802 | -3/Proximity Caves | Entered Research 20802 | -3/Research | Evolved 2 slots: Propulsion x1, Utility x1 21237 | -3/Research | Identified exit to Armory 21237 | -3/Research | Identified exit to Quarantine 21490 | -3/Research | Discovered new exit (range 18) 21539 | -3/Research | Entered Quarantine 21582 | -3/Quarantine | Cryocooling Duct disabled 21595 | -3/Quarantine | Found Alien Artifact 21597 | -3/Quarantine | Ambient heat levels rising (+20) 21597 | -3/Quarantine | Non-combat units ordered to evacuate 21639 | -3/Quarantine | Found Alien Energy Cannon 21639 | -3/Quarantine | Identified Core Cannon 21788 | -3/Quarantine | Found Prototype Device 21788 | -3/Quarantine | Identified Exp. Thermal Shield 21817 | -3/Quarantine | Found Alien Artifact 21817 | -3/Quarantine | Identified Hpw. Transdimensional Reconstructor 21817 | -3/Quarantine | Warped through subspace 21842 | -3/Quarantine | Found Hpw. Transdimensional Reconstructor 21848 | -3/Quarantine | Found Alien Artifact 21848 | -3/Quarantine | Identified Dimensional Node Initializer 21848 | -3/Quarantine | Initialized slip node 21851 | -3/Quarantine | Found Dimensional Node Initializer 21876 | -3/Quarantine | Found Unknown Launcher 21933 | -3/Quarantine | Build established: Scavenger-Ninja 21956 | -3/Quarantine | Spotted Fortress 21980 | -3/Quarantine | Discovered new exit (range 6) 21980 | -3/Quarantine | Discovered new exit (range 6) 21981 | -3/Quarantine | Identified exit to Protoforge 21982 | -3/Quarantine | Identified exit to Section 7 21982 | -3/Quarantine | Entered Section 7 21988 | -3/Section 7 | Central database locked down 22010 | -3/Section 7 | Found Integrated Dissipator 22023 | -3/Section 7 | Found Alien Artifact 22023 | -3/Section 7 | Identified Spacefold Activator 22036 | -3/Section 7 | Discovered new exit (range 15) 22042 | -3/Section 7 | Identified exit to Research 22044 | -3/Section 7 | Initialized slip node 22054 | -3/Section 7 | Spotted S7 Guard 22062 | -3/Section 7 | Found Alien Artifact 22062 | -3/Section 7 | Identified Core Membrane 22062 | -3/Section 7 | Installed Core Membrane, gained immunity to corruption 22111 | -3/Section 7 | Found Alien Artifact 22111 | -3/Section 7 | Identified Integrity Redistributor 22111 | -3/Section 7 | Used Integrity Redistributor, redistributed integrity from core (-21) 22138 | -3/Section 7 | Found Alien Artifact 22138 | -3/Section 7 | Identified Core Reset Matrix 22138 | -3/Section 7 | Identified Subatomic Replicator 22138 | -3/Section 7 | Identified Fusion Bomb Launcher 22138 | -3/Section 7 | Used Core Reset Matrix 22142 | -3/Section 7 | Detected hypermatrix surge 22142 | -3/Section 7 | Sensed 17 artifacts in vicinity 22173 | -3/Section 7 | Spotted B-99 Colossus 22187 | -3/Section 7 | Found Integrity Redistributor 22201 | -3/Section 7 | Found LRC Insulator 22201 | -3/Section 7 | Installed LRC Insulator, 1 resistance modified: EM +25% 22204 | -3/Section 7 | Found LRC Insulator 22204 | -3/Section 7 | Installed LRC Insulator, 1 resistance modified: EM +25% 22206 | -3/Section 7 | Used Subatomic Replicator to replicate LRC Inertial Stabilizer 22207 | -3/Section 7 | Found LRC Inertial Stabilizer 22207 | -3/Section 7 | Installed LRC Inertial Stabilizer, increased mass support (+10) 22209 | -3/Section 7 | Installed LRC Inertial Stabilizer, increased mass support (+10) 22211 | -3/Section 7 | Installed Integrated Dissipator, increased core heat dissipation (+20) 22291 | -3/Section 7 | Found Terrabomb 22295 | -3/Section 7 | Found Hpw. Transdimensional Reconstructor 22305 | -3/Section 7 | Found Matter Drive 22314 | -3/Section 7 | Crushed by falling debris 22345 | -3/Section 7 | Lost 3 parts (3u) 22408 | -3/Section 7 | Found Sigix Sheargun 22409 | -3/Section 7 | Warped through subspace to slip node 22409 | -3/Section 7 | Discovered exit to Research (range 2) 22443 | -3/Section 7 | Found Integrated Mediator 22454 | -3/Section 7 | Installed Integrated Mediator, increased core attachment efficiency 22497 | -3/Section 7 | Entered Research 22497 | -2/Research | Accompanied by 1 ally 22497 | -2/Research | Warlord forces began assault on 0b10 22497 | -2/Research | Evolved 2 slots: Utility x2 22522 | -2/Research | Distinguished unit "Knights of the Pentagonal Table" dispatched to help 22522 | -2/Research | Distinguished unit "Metalheads" dispatched to help 22598 | -2/Research | Build established: Alien-Scout 22607 | -2/Research | Research machine network offline 22647 | -2/Research | Fabricated Quantum Reactor (x2) 22745 | -2/Research | Found Prototype Processor 22745 | -2/Research | Identified Exp. Melee Analysis Suite 22963 | -2/Research | Borebot progress halted 22975 | -2/Research | Discovered new exit (range 21) 22981 | -2/Research | Identified exit to Access 23126 | -2/Research | Spotted Striker 23183 | -2/Research | Lost 5 allies 23211 | -2/Research | Met up with Warlord 23278 | -2/Research | Borebot progress halted 23296 | -2/Research | Found Exp. Targeting Computer 23317 | -2/Research | Found Prototype Processor 23317 | -2/Research | Identified Exp. Core Analyzer 23440 | -2/Research | Discovered exit to Access (range 18) 23521 | -2/Research | Spotted Executioner 23523 | -2/Research | Found Prototype Device 23523 | -2/Research | Identified Adv. Kinecellerator 23653 | -2/Research | Warlord invited to help at Command 23653 | -2/Research | Given Cave Seal Controls access code 23664 | -2/Research | Spotted Striker 23665 | -2/Research | Spotted Striker 23699 | -2/Research | Found Prototype Launcher 23699 | -2/Research | Identified Ragnarok Missile Launcher 23708 | -2/Research | Entered Access 23708 | -1/Access | Evolved 2 slots: Propulsion x1, Utility x1 23713 | -1/Access | Garrison activated, responded to threat 23915 | -1/Access | Unchained authorized (6S-H0T) 24005 | -1/Access | Build established: Alien-Ninja 24060 | -1/Access | Destroyed 6S-H0T 24085 | -1/Access | Found Prototype Ballistic Gun 24085 | -1/Access | Identified 6S-H0T's Six Shooter 24089 | -1/Access | Found 6S-H0T's SS Cartridge 24090 | -1/Access | Found 6S-H0T's SS Cartridge 24091 | -1/Access | Found 6S-H0T's SS Cartridge 24093 | -1/Access | Found 6S-H0T's SS Cartridge 24095 | -1/Access | Found Prototype Device 24096 | -1/Access | Identified Zeronet Interface 24208 | -1/Access | First assault squad dispatched 24272 | -1/Access | Discovered new exit (range 5) 24273 | -1/Access | Identified exit to Command 24274 | -1/Access | Entered Command 24394 | -1/Command | Disengaged cave seal 24394 | -1/Command | Derelicts emerged from the dark tunnel 24394 | -1/Command | Welcomed Warlord to Command 24495 | -1/Command | Lost 3 allies 24501 | -1/Command | Found Unknown Protection 24501 | -1/Command | Identified Hvy. Reflective Plating 24524 | -1/Command | First assault squad dispatched 24527 | -1/Command | Build established: Alien-Sprinter 24584 | -1/Command | Lost 13 allies 24664 | -1/Command | Spotted M Guard 24667 | -1/Command | Spotted Combat Programmer 24667 | -1/Command | Spotted Combat Programmer 24677 | -1/Command | Combat Programmer assimilated allied BV-NQQ(i) 24681 | -1/Command | Combat Programmer assimilated allied N9-8H6(i) 24694 | -1/Command | Spotted M Guard 24722 | -1/Command | Destroyed M Guard 24725 | -1/Command | Found Prototype Reactor 24726 | -1/Command | All MAIN.C guards destroyed 24729 | -1/Command | Found Prototype Device 24729 | -1/Command | Identified AEGIS Remote Shield 24732 | -1/Command | Warlord commented on Warlord statues 24743 | -1/Command | Disengaged cave seal 24743 | -1/Command | Lost 3 parts (1n1u1w) 24745 | -1/Command | Lost 8 allies 24765 | -1/Command | Found Prototype Launcher 24765 | -1/Command | Identified Hellfire Missile Launcher 24767 | -1/Command | Found Prototype Launcher 24767 | -1/Command | Identified Adv. Micro-nuke Launcher 24895 | -1/Command | Met MAIN.C 24899 | -1/Command | 0b10 Conduit disabled 24909 | -1/Command | Destroyed 2Z-5U8(L) 24919 | -1/Command | Destroyed MAIN.C Shell 24921 | -1/Command | MAIN.C activated Command garrisons 24948 | *** | Heading to fleet! Last Messages --------------- 24941_ Vortex penetrates MAIN.C. 24941_ MAIN.C suffers critical hit (Destroy). 24943_ Knocked back. 24943_ HV Slug penetrates 0b10 Conduit. 24943_ Blast Slug penetrates MAIN.C. 24943_ MAIN.C knocked back. 24944_ Vortex penetrates MAIN.C. 24944_ HV Slug penetrates MAIN.C. 24945_ 7V-Y52(p) resets 4C-8KY(m), system corruption cleaned. 24945_ MAIN.C suffers critical hit (Destroy). 24946_ Quantum Reactor destroyed. 24946_ Linear Accelerator destroyed. 24946_ Knocked back. 24946_ Blast Slug penetrates MAIN.C. 24947_ MAIN.C: "I hope you know you're still going to DIE HERE WITH ME!" 24947_ MAIN.C destroyed. Warlord: Victory! Sure there's still lots to do, but without MAIN.C at the helm 0b10 doesn't stand a chance. We've got this... Map ----- +----------------------------------------------------+ | ?????????????????????????????????????????????????? | | ?????????????????????????????????????????????????? | | ?????????????????????????????????????????????????? | | ?????????????????????????????????????????????????? | | ?????????????????????????????????????????????????? | | ?????????????????????????????????????????????????? | | ?????????????????????????????????????????????????? | | ?????????????????????????????????????????????????? | | ?????????????????????????????????????????????????? | | ?????????????????????????????????????????????????? | | ?????????????????????????????????????????????????? | | ?????????????????????????????????????????????????? | | ?????????????????????????????????????????????????? | | ?????????????????????????????????????????????????? | | ?????????????????????????????????????????????????? | | ????????????????#############????????????????????? | | ????????????????"""" #????????????????????? | | ??????????????? "" #????????????????????? | | ?????????????? "" W ###################### | | ??????????????"""" M ; | | ????????????? """ % % | | ?????????????"""" Mp=m = | | ????????????"""" MMMMM M################### | | ????????" " " %M%%%%#?????????????????# | | ???????? % !M #?????????????????# | | ???????? % @""#?????????????????# | | ???????? """""#?????????????????#++/ | | ???????? % $ """""""#?????????????????# | | ????????? % " """"""""#?????????????????# | | ????????? % % " " " " #?????????????????# | | ?????????? "?" " " #?????????????????# | | ?????????? ???????"?"""" " #?????????????????# | | ????????????????????? """" #?????????????????# | | ????????????????????????" ???????????????????#### | | ?????????????????????????????????????????????????? | | ?????????????????????????????????????????????????? | | ?????????????????????????????????????????????????? | | ?????????????????????????????????????????????????? | | ?????????????????????????????????????????????????? | | ?????????????????????????????????????????????????? | | ?????????????????????????????????????????????????? | | ?????????????????????????????????????????????????? | | ?????????????????????????????????????????????????? | | ?????????????????????????????????????????????????? | | ?????????????????????????????????????????????????? | | ?????????????????????????????????????????????????? | | ?????????????????????????????????????????????????? | | ?????????????????????????????????????????????????? | | ?????????????????????????????????????????????????? | | ?????????????????????????????????????????????????? | +----------------------------------------------------+ Best States ------------- Heat Dissipation 149 Coolant Potential 320 Energy Generation 55 Energy Capacity 980 Matter Stores 300 Matter Capacity 350 Sight Range 22 Robot Scan Range 16 Terrain Scan Range 20 Terrain Scan Density 210 Jamming Range 16 Cloak Strength 3 Power Amplification 30 Additional Mass Support 9 Base Temperature (-) 200 Armor Coverage 450 Resistance: KI 30 Resistance: TH 30 Resistance: EM 50 Core Shielding 30 Propulsion Shielding 90 Utility Shielding 66 Point Defense Rating 400 Weapon Cycling 30 Melee Speed Boost 40 Phase Shifting 20 Evasion (%) 80 Targeting Accuracy 20 Melee Accuracy 6 Target Analysis 8 Core Analysis 8 Armor Integrity Analysis 40 Recoil Reduction 6 Kinecelleration 30 Offensive Hacking 12 Defensive Hacking 23 Item Schematics ----------------- None Robot Schematics ------------------ None Fabricated ------------ Imp. Linear Gravjet | x2 | -6/Factory | Preloaded Quantum Reactor | x2 | -2/Research | Preloaded Repaired ---------- EM Shotgun | 14% | -8/Materials EM Shotgun | 40% | -8/Materials Biometal Leg | 5% | -6/Factory Antimatter Reactor | 54% | -6/Factory Biometal Leg | 12% | -5/Factory Studied --------- Impulse Thruster Array | -1/Access | Hacked Alien Tech Used ----------------- Integrated Dissipator Core Cannon High-powered Transdimensional Reconstructor Dimensional Node Initializer Spacefold Activator Core Membrane Integrity Redistributor Core Reset Matrix LRC Insulator Subatomic Replicator LRC Inertial Stabilizer Matter Drive Integrated Mediator Sigix Sheargun Achievements -------------- Bigger And Badder Hot Goods Immobile And Lovin' It Showdown The Better Part Of Valor Window Shopping Challenges ------------ None Game ------ Seed BehemothMultireflexRouter Manual? 0 Play Time 07:59:35 Cumulative 471.8 hours Start 2025.12.11 @ 20:05:12 End 2025.12.14 @ 18:20:11 Sessions 7 Manual Loads 0 Difficulty Rogue Special Mode None Game No. 190 Rogue 117 Adventurer 68 Explorer 5 Win Type 2 Total 37 Types 20/3/4/4/3/0/1/0/0/2 Lore% 82 Gallery% 79 Achievement% 62 Wizard Run 0 Options --------- Layout 0 ASCII 0 Keyboard 0 Movement Numpad Keybinds 0 Fullscreen 1 Font 24/Smallcaps Map View 76x50 Zoom Use 0% Tactical HUD 1 Map Filters NONE Filters NONE Steam 1 RUN: e07e8626-5ec0-4304-bf50-0ec4c40387ac